Workbook

Sheet 提出様式（記載例）
J2: 応募者 | K2: ○○株式会社
B5: （１）ＣＯ２吸収量の算定方法 以下のいずれかの方法にチェックを記載 Ａ 「森林による二酸化炭素吸収量の算定方法について」（令和３年12月27日付３林政企第60号林野庁長官通知） に基づく算定方法 ａ １年間に森林が吸収するＣＯ２量の簡便な算定方法 □ア 簡易な方法 ☑イ 精緻な方法 □ｂ 再造林・保育を行うことにより森林に吸収されるＣＯ２量の増加分の算定方法 □ｃ 森林の育成により保持される土壌炭素量（ＣＯ２換算）の算定方法 □Ｂ 都府県による二酸化炭素吸収量認証制度に基づく算定方法 □Ｃ 国有林における「法人の森林」における環境貢献度評価に基づく算定方法
B20: （２）森林整備の詳細
L21: 面積合計 | N21: =H325 -> 44
L22: 吸収量合計 | N22: =O325 -> 330
B23: 番号 | C23: 森林の所在地 | E23: 所有形態 | F23: 整備 年度 | G23: 主な 整備内容 | H23: 面積 | I23: 樹種 | J23: その他の 樹種 | K23: 林齢 | L23: ha当り 立木本数 | M23: 樹高 | N23: 平均 直径 | O23: 年間ＣＯ２ 吸収量
C24: 都道府県 | D24: 市町村以下
B25: 1 | C25: 栃木県 | D25: E市101-22-33 | E25: 国 | F25: R4 | G25: 植栽 | H25: 4 | I25: ヒノキ | K25: 1 | L25: 3000 | M25: 0.5 | N25: 0 | O25: 0.08062780121
B26: 2 | C26: 栃木県 | D26: E市101-22-34 | E26: 都道府県 | F26: R4・R5 | G26: 下刈 | H26: 2 | I26: スギ | K26: 3 | L26: 2800 | M26: 0.8 | N26: 0 | O26: 0.1335529873
B27: 3 | C27: 群馬県 | D27: F市87-1-a | E27: 市町村 | F27: R5 | G27: 枝打ち | H27: 7 | I27: カラマツ | K27: 10 | L27: 2600 | M27: 3 | N27: 0 | O27: 3.073600617
B28: 4 | C28: 群馬県 | D28: F市23-3-c | E28: 個人（応募者自ら所有） | F28: R4 | G28: 除伐 | H28: 4 | I28: その他樹種 | J28: クヌギ | K28: 13 | L28: 1700 | M28: 2 | N28: 0 | O28: 12.90071491
B29: 5 | C29: 群馬県 | D29: F市233-4-1 | E29: 個人（他者所有） | F29: R4・R5 | G29: 間伐 | H29: 9 | I29: ヒノキ | K29: 35 | L29: 1800 | M29: 15 | N29: 22 | O29: 231.5614022
B30: 6 | C30: 栃木県 | D30: E市101-22-33 | E30: 企業、団体（応募者自ら所有） | F30: R5 | G30: 植栽 | H30: 1 | I30: スギ | K30: 1 | L30: 2000 | M30: 0.5 | N30: 0 | O30: 0.01260444466
B31: 7 | C31: 栃木県 | D31: E市101-22-34 | E31: 企業、団体（他者所有） | F31: R4 | G31: 下刈 | H31: 2 | I31: カラマツ | K31: 2 | L31: 2900 | M31: 0.6 | N31: 0 | O31: 0.010175595
B32: 8 | C32: 群馬県 | D32: F市87-1-a | E32: その他 | F32: R4・R5 | G32: 枝打ち | H32: 5 | I32: その他樹種 | J32: コウヨウザン | K32: 9 | L32: 1900 | M32: 5 | N32: 0 | O32: 14.74064777
B33: 9 | C33: 群馬県 | D33: F市23-3-c | E33: 国 | F33: R5 | G33: 除伐 | H33: 7 | I33: ヒノキ | K33: 11 | L33: 2000 | M33: 4 | N33: 0 | O33: 20.7686516
B34: 10 | C34: 群馬県 | D34: F市233-4-1 | E34: 都道府県 | F34: R4 | G34: 間伐 | H34: 3 | I34: スギ | K34: 42 | L34: 1600 | M34: 17 | N34: 24 | O34: 46.37607101
R40: =IF(K40="","",ROUNDUP(K40/5,0)) -> 
B325: 合計 | H325: =ROUND(SUM(H25:H324),2) -> 44 | O325: =ROUND(SUM(O25:O324),0) -> 330

Sheet 提出様式
J2: 応募者 | K2: ○○株式会社
B5: （１）ＣＯ２吸収量の算定方法 以下のいずれかの方法にチェックを記載 Ａ 「森林による二酸化炭素吸収量の算定方法について」（令和３年12月27日付３林政企第60号林野庁長官通知） に基づく算定方法 ａ １年間に森林が吸収するＣＯ２量の簡便な算定方法 □ア 簡易な方法 ☑イ 精緻な方法 □ｂ 再造林・保育を行うことにより森林に吸収されるＣＯ２量の増加分の算定方法 □ｃ 森林の育成により保持される土壌炭素量（ＣＯ２換算）の算定方法 □Ｂ 都府県による二酸化炭素吸収量認証制度に基づく算定方法 □Ｃ 国有林における「法人の森林」における環境貢献度評価に基づく算定方法
B20: （２）森林整備の詳細
L21: 面積合計 | N21: =H325 -> 0
L22: 吸収量合計 | N22: =O325 -> 0
B23: 番号 | C23: 森林の所在地 | E23: 所有形態 | F23: 整備 年度 | G23: 主な 整備内容 | H23: 面積 | I23: 樹種 | J23: その他の 樹種 | K23: 林齢 | L23: ha当り 立木本数 | M23: 樹高 | N23: 平均 直径 | O23: 年間ＣＯ２ 吸収量
C24: 都道府県 | D24: 市町村以下
B25: =IF(C25="","",1) ->  | O25: =IF(計算明細表!O9="","",計算明細表!O9) -> 
B26: =IF(C26="","",SUM(B25+1)) ->  | O26: =IF(計算明細表!O10="","",計算明細表!O10) -> 
B27: =IF(C27="","",SUM(B26+1)) ->  | O27: =IF(計算明細表!O11="","",計算明細表!O11) -> 
O28: =IF(計算明細表!O12="","",計算明細表!O12) -> 
O29: =IF(計算明細表!O13="","",計算明細表!O13) -> 
O30: =IF(計算明細表!O14="","",計算明細表!O14) -> 
B31: =IF(C31="","",SUM(B30+1)) ->  | O31: =IF(計算明細表!O15="","",計算明細表!O15) -> 
O32: =IF(計算明細表!O16="","",計算明細表!O16) -> 
O33: =IF(計算明細表!O17="","",計算明細表!O17) -> 
O34: =IF(計算明細表!O18="","",計算明細表!O18) -> 
B35: =IF(C35="","",SUM(B34+1)) ->  | O35: =IF(計算明細表!O19="","",計算明細表!O19) -> 
B36: =IF(C36="","",SUM(B35+1)) ->  | O36: =IF(計算明細表!O20="","",計算明細表!O20) -> 
O37: =IF(計算明細表!O21="","",計算明細表!O21) -> 
O38: =IF(計算明細表!O22="","",計算明細表!O22) -> 
O39: =IF(計算明細表!O23="","",計算明細表!O23) -> 
O40: =IF(計算明細表!O24="","",計算明細表!O24) -> 
O41: =IF(計算明細表!O25="","",計算明細表!O25) -> 
O42: =IF(計算明細表!O26="","",計算明細表!O26) -> 
O43: =IF(計算明細表!O27="","",計算明細表!O27) -> 
O44: =IF(計算明細表!O28="","",計算明細表!O28) -> 
O45: =IF(計算明細表!O29="","",計算明細表!O29) -> 
O46: =IF(計算明細表!O30="","",計算明細表!O30) -> 
O47: =IF(計算明細表!O31="","",計算明細表!O31) -> 
O48: =IF(計算明細表!O32="","",計算明細表!O32) -> 
O49: =IF(計算明細表!O33="","",計算明細表!O33) -> 
O50: =IF(計算明細表!O34="","",計算明細表!O34) -> 
O51: =IF(計算明細表!O35="","",計算明細表!O35) -> 
O52: =IF(計算明細表!O36="","",計算明細表!O36) -> 
O53: =IF(計算明細表!O37="","",計算明細表!O37) -> 
O54: =IF(計算明細表!O38="","",計算明細表!O38) -> 
O55: =IF(計算明細表!O39="","",計算明細表!O39) -> 
O56: =IF(計算明細表!O40="","",計算明細表!O40) -> 
O57: =IF(計算明細表!O41="","",計算明細表!O41) -> 
O58: =IF(計算明細表!O42="","",計算明細表!O42) -> 
O59: =IF(計算明細表!O43="","",計算明細表!O43) -> 
O60: =IF(計算明細表!O44="","",計算明細表!O44) -> 
O61: =IF(計算明細表!O45="","",計算明細表!O45) -> 
O62: =IF(計算明細表!O46="","",計算明細表!O46) -> 
O63: =IF(計算明細表!O47="","",計算明細表!O47) -> 
O64: =IF(計算明細表!O48="","",計算明細表!O48) -> 
O65: =IF(計算明細表!O49="","",計算明細表!O49) -> 
O66: =IF(計算明細表!O50="","",計算明細表!O50) -> 
O67: =IF(計算明細表!O51="","",計算明細表!O51) -> 
O68: =IF(計算明細表!O52="","",計算明細表!O52) -> 
O69: =IF(計算明細表!O53="","",計算明細表!O53) -> 
O70: =IF(計算明細表!O54="","",計算明細表!O54) -> 
O71: =IF(計算明細表!O55="","",計算明細表!O55) -> 
O72: =IF(計算明細表!O56="","",計算明細表!O56) -> 
O73: =IF(計算明細表!O57="","",計算明細表!O57) -> 
O74: =IF(計算明細表!O58="","",計算明細表!O58) -> 
O75: =IF(計算明細表!O59="","",計算明細表!O59) -> 
O76: =IF(計算明細表!O60="","",計算明細表!O60) -> 
O77: =IF(計算明細表!O61="","",計算明細表!O61) -> 
O78: =IF(計算明細表!O62="","",計算明細表!O62) -> 
O79: =IF(計算明細表!O63="","",計算明細表!O63) -> 
O80: =IF(計算明細表!O64="","",計算明細表!O64) -> 
O81: =IF(計算明細表!O65="","",計算明細表!O65) -> 
O82: =IF(計算明細表!O66="","",計算明細表!O66) -> 
O83: =IF(計算明細表!O67="","",計算明細表!O67) -> 
O84: =IF(計算明細表!O68="","",計算明細表!O68) -> 
O85: =IF(計算明細表!O69="","",計算明細表!O69) -> 
O86: =IF(計算明細表!O70="","",計算明細表!O70) -> 
O87: =IF(計算明細表!O71="","",計算明細表!O71) -> 
O88: =IF(計算明細表!O72="","",計算明細表!O72) -> 
O89: =IF(計算明細表!O73="","",計算明細表!O73) -> 
O90: =IF(計算明細表!O74="","",計算明細表!O74) -> 
O91: =IF(計算明細表!O75="","",計算明細表!O75) -> 
O92: =IF(計算明細表!O76="","",計算明細表!O76) -> 
O93: =IF(計算明細表!O77="","",計算明細表!O77) -> 
O94: =IF(計算明細表!O78="","",計算明細表!O78) -> 
O95: =IF(計算明細表!O79="","",計算明細表!O79) -> 
O96: =IF(計算明細表!O80="","",計算明細表!O80) -> 
O97: =IF(計算明細表!O81="","",計算明細表!O81) -> 
O98: =IF(計算明細表!O82="","",計算明細表!O82) -> 
O99: =IF(計算明細表!O83="","",計算明細表!O83) -> 
B100: =IF(C100="","",SUM(B99+1)) ->  | O100: =IF(計算明細表!O84="","",計算明細表!O84) -> 
O101: =IF(計算明細表!O85="","",計算明細表!O85) -> 
O102: =IF(計算明細表!O86="","",計算明細表!O86) -> 
O103: =IF(計算明細表!O87="","",計算明細表!O87) -> 
O104: =IF(計算明細表!O88="","",計算明細表!O88) -> 
O105: =IF(計算明細表!O89="","",計算明細表!O89) -> 
O106: =IF(計算明細表!O90="","",計算明細表!O90) -> 
O107: =IF(計算明細表!O91="","",計算明細表!O91) -> 
O108: =IF(計算明細表!O92="","",計算明細表!O92) -> 
O109: =IF(計算明細表!O93="","",計算明細表!O93) -> 
O110: =IF(計算明細表!O94="","",計算明細表!O94) -> 
O111: =IF(計算明細表!O95="","",計算明細表!O95) -> 
O112: =IF(計算明細表!O96="","",計算明細表!O96) -> 
O113: =IF(計算明細表!O97="","",計算明細表!O97) -> 
O114: =IF(計算明細表!O98="","",計算明細表!O98) -> 
O115: =IF(計算明細表!O99="","",計算明細表!O99) -> 
O116: =IF(計算明細表!O100="","",計算明細表!O100) -> 
O117: =IF(計算明細表!O101="","",計算明細表!O101) -> 
O118: =IF(計算明細表!O102="","",計算明細表!O102) -> 
O119: =IF(計算明細表!O103="","",計算明細表!O103) -> 
O120: =IF(計算明細表!O104="","",計算明細表!O104) -> 
O121: =IF(計算明細表!O105="","",計算明細表!O105) -> 
O122: =IF(計算明細表!O106="","",計算明細表!O106) -> 
O123: =IF(計算明細表!O107="","",計算明細表!O107) -> 
O124: =IF(計算明細表!O108="","",計算明細表!O108) -> 
O125: =IF(計算明細表!O109="","",計算明細表!O109) -> 
O126: =IF(計算明細表!O110="","",計算明細表!O110) -> 
O127: =IF(計算明細表!O111="","",計算明細表!O111) -> 
O128: =IF(計算明細表!O112="","",計算明細表!O112) -> 
O129: =IF(計算明細表!O113="","",計算明細表!O113) -> 
O130: =IF(計算明細表!O114="","",計算明細表!O114) -> 
O131: =IF(計算明細表!O115="","",計算明細表!O115) -> 
O132: =IF(計算明細表!O116="","",計算明細表!O116) -> 
O133: =IF(計算明細表!O117="","",計算明細表!O117) -> 
O134: =IF(計算明細表!O118="","",計算明細表!O118) -> 
O135: =IF(計算明細表!O119="","",計算明細表!O119) -> 
O136: =IF(計算明細表!O120="","",計算明細表!O120) -> 
O137: =IF(計算明細表!O121="","",計算明細表!O121) -> 
O138: =IF(計算明細表!O122="","",計算明細表!O122) -> 
O139: =IF(計算明細表!O123="","",計算明細表!O123) -> 
O140: =IF(計算明細表!O124="","",計算明細表!O124) -> 
O141: =IF(計算明細表!O125="","",計算明細表!O125) -> 
O142: =IF(計算明細表!O126="","",計算明細表!O126) -> 
O143: =IF(計算明細表!O127="","",計算明細表!O127) -> 
O144: =IF(計算明細表!O128="","",計算明細表!O128) -> 
O145: =IF(計算明細表!O129="","",計算明細表!O129) -> 
O146: =IF(計算明細表!O130="","",計算明細表!O130) -> 
O147: =IF(計算明細表!O131="","",計算明細表!O131) -> 
O148: =IF(計算明細表!O132="","",計算明細表!O132) -> 
O149: =IF(計算明細表!O133="","",計算明細表!O133) -> 
O150: =IF(計算明細表!O134="","",計算明細表!O134) -> 
O151: =IF(計算明細表!O135="","",計算明細表!O135) -> 
O152: =IF(計算明細表!O136="","",計算明細表!O136) -> 
O153: =IF(計算明細表!O137="","",計算明細表!O137) -> 
O154: =IF(計算明細表!O138="","",計算明細表!O138) -> 
O155: =IF(計算明細表!O139="","",計算明細表!O139) -> 
O156: =IF(計算明細表!O140="","",計算明細表!O140) -> 
O157: =IF(計算明細表!O141="","",計算明細表!O141) -> 
O158: =IF(計算明細表!O142="","",計算明細表!O142) -> 
O159: =IF(計算明細表!O143="","",計算明細表!O143) -> 
O160: =IF(計算明細表!O144="","",計算明細表!O144) -> 
O161: =IF(計算明細表!O145="","",計算明細表!O145) -> 
O162: =IF(計算明細表!O146="","",計算明細表!O146) -> 
O163: =IF(計算明細表!O147="","",計算明細表!O147) -> 
B164: =IF(C164="","",SUM(B163+1)) ->  | O164: =IF(計算明細表!O148="","",計算明細表!O148) -> 
O165: =IF(計算明細表!O149="","",計算明細表!O149) -> 
O166: =IF(計算明細表!O150="","",計算明細表!O150) -> 
O167: =IF(計算明細表!O151="","",計算明細表!O151) -> 
O168: =IF(計算明細表!O152="","",計算明細表!O152) -> 
O169: =IF(計算明細表!O153="","",計算明細表!O153) -> 
O170: =IF(計算明細表!O154="","",計算明細表!O154) -> 
O171: =IF(計算明細表!O155="","",計算明細表!O155) -> 
O172: =IF(計算明細表!O156="","",計算明細表!O156) -> 
O173: =IF(計算明細表!O157="","",計算明細表!O157) -> 
O174: =IF(計算明細表!O158="","",計算明細表!O158) -> 
O175: =IF(計算明細表!O159="","",計算明細表!O159) -> 
O176: =IF(計算明細表!O160="","",計算明細表!O160) -> 
O177: =IF(計算明細表!O161="","",計算明細表!O161) -> 
O178: =IF(計算明細表!O162="","",計算明細表!O162) -> 
O179: =IF(計算明細表!O163="","",計算明細表!O163) -> 
O180: =IF(計算明細表!O164="","",計算明細表!O164) -> 
O181: =IF(計算明細表!O165="","",計算明細表!O165) -> 
O182: =IF(計算明細表!O166="","",計算明細表!O166) -> 
O183: =IF(計算明細表!O167="","",計算明細表!O167) -> 
O184: =IF(計算明細表!O168="","",計算明細表!O168) -> 
O185: =IF(計算明細表!O169="","",計算明細表!O169) -> 
O186: =IF(計算明細表!O170="","",計算明細表!O170) -> 
O187: =IF(計算明細表!O171="","",計算明細表!O171) -> 
O188: =IF(計算明細表!O172="","",計算明細表!O172) -> 
O189: =IF(計算明細表!O173="","",計算明細表!O173) -> 
O190: =IF(計算明細表!O174="","",計算明細表!O174) -> 
O191: =IF(計算明細表!O175="","",計算明細表!O175) -> 
O192: =IF(計算明細表!O176="","",計算明細表!O176) -> 
O193: =IF(計算明細表!O177="","",計算明細表!O177) -> 
O194: =IF(計算明細表!O178="","",計算明細表!O178) -> 
O195: =IF(計算明細表!O179="","",計算明細表!O179) -> 
O196: =IF(計算明細表!O180="","",計算明細表!O180) -> 
O197: =IF(計算明細表!O181="","",計算明細表!O181) -> 
O198: =IF(計算明細表!O182="","",計算明細表!O182) -> 
O199: =IF(計算明細表!O183="","",計算明細表!O183) -> 
O200: =IF(計算明細表!O184="","",計算明細表!O184) -> 
O201: =IF(計算明細表!O185="","",計算明細表!O185) -> 
O202: =IF(計算明細表!O186="","",計算明細表!O186) -> 
O203: =IF(計算明細表!O187="","",計算明細表!O187) -> 
O204: =IF(計算明細表!O188="","",計算明細表!O188) -> 
O205: =IF(計算明細表!O189="","",計算明細表!O189) -> 
O206: =IF(計算明細表!O190="","",計算明細表!O190) -> 
O207: =IF(計算明細表!O191="","",計算明細表!O191) -> 
O208: =IF(計算明細表!O192="","",計算明細表!O192) -> 
O209: =IF(計算明細表!O193="","",計算明細表!O193) -> 
O210: =IF(計算明細表!O194="","",計算明細表!O194) -> 
O211: =IF(計算明細表!O195="","",計算明細表!O195) -> 
O212: =IF(計算明細表!O196="","",計算明細表!O196) -> 
O213: =IF(計算明細表!O197="","",計算明細表!O197) -> 
O214: =IF(計算明細表!O198="","",計算明細表!O198) -> 
O215: =IF(計算明細表!O199="","",計算明細表!O199) -> 
O216: =IF(計算明細表!O200="","",計算明細表!O200) -> 
O217: =IF(計算明細表!O201="","",計算明細表!O201) -> 
... 108 more rows

Sheet 入力 (hidden)
H8: 事業体名テーブル
F9: 御 社 名 | H9: =提出様式!K2 -> ○○株式会社
F10: プロジェクト名称
F11: 担 当 者 名
F12: 連 絡 先
C14: 区分名登録テーブル | F14: 作成年月日
B15: 番号 | C15: 森林整備の種類、団地名等の整備対象区分の登録
B17: 1
B18: 2
B19: 3
B20: 4
B21: 5
B22: 6
B23: 7
B24: 8
B25: 9
B26: 10
F30: データ入力テーブル
B32: 番号 | C32: 森林整備の種類等の区分 | D32: 森林の所在県 | E32: 林班等所在地の区分 | F32: 樹種の選択 | G32: 齢級 | H32: 面積 ha | I32: 森林調査結果
I33: ha当り立木本数 | J33: 樹高 m | K33: 平均直径 cm
B34: 1 | D34: =IF(提出様式!C25="","",提出様式!C25) ->  | F34: =IF(提出様式!I25="","",提出様式!I25) ->  | G34: =IF(提出様式!K25="","",(ROUNDUP(提出様式!K25/5,0))) ->  | H34: =IF(提出様式!H25="","",提出様式!H25) ->  | I34: =IF(提出様式!L25="","",提出様式!L25) ->  | J34: =IF(提出様式!M25="","",提出様式!M25) ->  | K34: =IF(提出様式!N25="","",提出様式!N25) -> 
B35: 2 | D35: =IF(提出様式!C26="","",提出様式!C26) ->  | F35: =IF(提出様式!I26="","",提出様式!I26) ->  | G35: =IF(提出様式!K26="","",(ROUNDUP(提出様式!K26/5,0))) ->  | H35: =IF(提出様式!H26="","",提出様式!H26) ->  | I35: =IF(提出様式!L26="","",提出様式!L26) ->  | J35: =IF(提出様式!M26="","",提出様式!M26) ->  | K35: =IF(提出様式!N26="","",提出様式!N26) -> 
B36: 3 | D36: =IF(提出様式!C27="","",提出様式!C27) ->  | F36: =IF(提出様式!I27="","",提出様式!I27) ->  | G36: =IF(提出様式!K27="","",(ROUNDUP(提出様式!K27/5,0))) ->  | H36: =IF(提出様式!H27="","",提出様式!H27) ->  | I36: =IF(提出様式!L27="","",提出様式!L27) ->  | J36: =IF(提出様式!M27="","",提出様式!M27) ->  | K36: =IF(提出様式!N27="","",提出様式!N27) -> 
B37: 4 | D37: =IF(提出様式!C28="","",提出様式!C28) ->  | F37: =IF(提出様式!I28="","",提出様式!I28) ->  | G37: =IF(提出様式!K28="","",(ROUNDUP(提出様式!K28/5,0))) ->  | H37: =IF(提出様式!H28="","",提出様式!H28) ->  | I37: =IF(提出様式!L28="","",提出様式!L28) ->  | J37: =IF(提出様式!M28="","",提出様式!M28) ->  | K37: =IF(提出様式!N28="","",提出様式!N28) -> 
B38: 5 | D38: =IF(提出様式!C29="","",提出様式!C29) ->  | F38: =IF(提出様式!I29="","",提出様式!I29) ->  | G38: =IF(提出様式!K29="","",(ROUNDUP(提出様式!K29/5,0))) ->  | H38: =IF(提出様式!H29="","",提出様式!H29) ->  | I38: =IF(提出様式!L29="","",提出様式!L29) ->  | J38: =IF(提出様式!M29="","",提出様式!M29) ->  | K38: =IF(提出様式!N29="","",提出様式!N29) -> 
B39: 6 | D39: =IF(提出様式!C30="","",提出様式!C30) ->  | F39: =IF(提出様式!I30="","",提出様式!I30) ->  | G39: =IF(提出様式!K30="","",(ROUNDUP(提出様式!K30/5,0))) ->  | H39: =IF(提出様式!H30="","",提出様式!H30) ->  | I39: =IF(提出様式!L30="","",提出様式!L30) ->  | J39: =IF(提出様式!M30="","",提出様式!M30) ->  | K39: =IF(提出様式!N30="","",提出様式!N30) -> 
B40: 7 | D40: =IF(提出様式!C31="","",提出様式!C31) ->  | F40: =IF(提出様式!I31="","",提出様式!I31) ->  | G40: =IF(提出様式!K31="","",(ROUNDUP(提出様式!K31/5,0))) ->  | H40: =IF(提出様式!H31="","",提出様式!H31) ->  | I40: =IF(提出様式!L31="","",提出様式!L31) ->  | J40: =IF(提出様式!M31="","",提出様式!M31) ->  | K40: =IF(提出様式!N31="","",提出様式!N31) -> 
B41: 8 | D41: =IF(提出様式!C32="","",提出様式!C32) ->  | F41: =IF(提出様式!I32="","",提出様式!I32) ->  | G41: =IF(提出様式!K32="","",(ROUNDUP(提出様式!K32/5,0))) ->  | H41: =IF(提出様式!H32="","",提出様式!H32) ->  | I41: =IF(提出様式!L32="","",提出様式!L32) ->  | J41: =IF(提出様式!M32="","",提出様式!M32) ->  | K41: =IF(提出様式!N32="","",提出様式!N32) -> 
B42: 9 | D42: =IF(提出様式!C33="","",提出様式!C33) ->  | F42: =IF(提出様式!I33="","",提出様式!I33) ->  | G42: =IF(提出様式!K33="","",(ROUNDUP(提出様式!K33/5,0))) ->  | H42: =IF(提出様式!H33="","",提出様式!H33) ->  | I42: =IF(提出様式!L33="","",提出様式!L33) ->  | J42: =IF(提出様式!M33="","",提出様式!M33) ->  | K42: =IF(提出様式!N33="","",提出様式!N33) -> 
B43: 10 | D43: =IF(提出様式!C34="","",提出様式!C34) ->  | F43: =IF(提出様式!I34="","",提出様式!I34) ->  | G43: =IF(提出様式!K34="","",(ROUNDUP(提出様式!K34/5,0))) ->  | H43: =IF(提出様式!H34="","",提出様式!H34) ->  | I43: =IF(提出様式!L34="","",提出様式!L34) ->  | J43: =IF(提出様式!M34="","",提出様式!M34) ->  | K43: =IF(提出様式!N34="","",提出様式!N34) -> 
B44: 11 | D44: =IF(提出様式!C35="","",提出様式!C35) ->  | F44: =IF(提出様式!I35="","",提出様式!I35) ->  | G44: =IF(提出様式!K35="","",(ROUNDUP(提出様式!K35/5,0))) ->  | H44: =IF(提出様式!H35="","",提出様式!H35) ->  | I44: =IF(提出様式!L35="","",提出様式!L35) ->  | J44: =IF(提出様式!M35="","",提出様式!M35) ->  | K44: =IF(提出様式!N35="","",提出様式!N35) -> 
B45: 12 | D45: =IF(提出様式!C36="","",提出様式!C36) ->  | F45: =IF(提出様式!I36="","",提出様式!I36) ->  | G45: =IF(提出様式!K36="","",(ROUNDUP(提出様式!K36/5,0))) ->  | H45: =IF(提出様式!H36="","",提出様式!H36) ->  | I45: =IF(提出様式!L36="","",提出様式!L36) ->  | J45: =IF(提出様式!M36="","",提出様式!M36) ->  | K45: =IF(提出様式!N36="","",提出様式!N36) -> 
B46: 13 | D46: =IF(提出様式!C37="","",提出様式!C37) ->  | F46: =IF(提出様式!I37="","",提出様式!I37) ->  | G46: =IF(提出様式!K37="","",(ROUNDUP(提出様式!K37/5,0))) ->  | H46: =IF(提出様式!H37="","",提出様式!H37) ->  | I46: =IF(提出様式!L37="","",提出様式!L37) ->  | J46: =IF(提出様式!M37="","",提出様式!M37) ->  | K46: =IF(提出様式!N37="","",提出様式!N37) -> 
B47: 14 | D47: =IF(提出様式!C38="","",提出様式!C38) ->  | F47: =IF(提出様式!I38="","",提出様式!I38) ->  | G47: =IF(提出様式!K38="","",(ROUNDUP(提出様式!K38/5,0))) ->  | H47: =IF(提出様式!H38="","",提出様式!H38) ->  | I47: =IF(提出様式!L38="","",提出様式!L38) ->  | J47: =IF(提出様式!M38="","",提出様式!M38) ->  | K47: =IF(提出様式!N38="","",提出様式!N38) -> 
B48: 15 | D48: =IF(提出様式!C39="","",提出様式!C39) ->  | F48: =IF(提出様式!I39="","",提出様式!I39) ->  | G48: =IF(提出様式!K39="","",(ROUNDUP(提出様式!K39/5,0))) ->  | H48: =IF(提出様式!H39="","",提出様式!H39) ->  | I48: =IF(提出様式!L39="","",提出様式!L39) ->  | J48: =IF(提出様式!M39="","",提出様式!M39) ->  | K48: =IF(提出様式!N39="","",提出様式!N39) -> 
B49: 16 | D49: =IF(提出様式!C40="","",提出様式!C40) ->  | F49: =IF(提出様式!I40="","",提出様式!I40) ->  | G49: =IF(提出様式!K40="","",(ROUNDUP(提出様式!K40/5,0))) ->  | H49: =IF(提出様式!H40="","",提出様式!H40) ->  | I49: =IF(提出様式!L40="","",提出様式!L40) ->  | J49: =IF(提出様式!M40="","",提出様式!M40) ->  | K49: =IF(提出様式!N40="","",提出様式!N40) -> 
B50: 17 | D50: =IF(提出様式!C41="","",提出様式!C41) ->  | F50: =IF(提出様式!I41="","",提出様式!I41) ->  | G50: =IF(提出様式!K41="","",(ROUNDUP(提出様式!K41/5,0))) ->  | H50: =IF(提出様式!H41="","",提出様式!H41) ->  | I50: =IF(提出様式!L41="","",提出様式!L41) ->  | J50: =IF(提出様式!M41="","",提出様式!M41) ->  | K50: =IF(提出様式!N41="","",提出様式!N41) -> 
B51: 18 | D51: =IF(提出様式!C42="","",提出様式!C42) ->  | F51: =IF(提出様式!I42="","",提出様式!I42) ->  | G51: =IF(提出様式!K42="","",(ROUNDUP(提出様式!K42/5,0))) ->  | H51: =IF(提出様式!H42="","",提出様式!H42) ->  | I51: =IF(提出様式!L42="","",提出様式!L42) ->  | J51: =IF(提出様式!M42="","",提出様式!M42) ->  | K51: =IF(提出様式!N42="","",提出様式!N42) -> 
B52: 19 | D52: =IF(提出様式!C43="","",提出様式!C43) ->  | F52: =IF(提出様式!I43="","",提出様式!I43) ->  | G52: =IF(提出様式!K43="","",(ROUNDUP(提出様式!K43/5,0))) ->  | H52: =IF(提出様式!H43="","",提出様式!H43) ->  | I52: =IF(提出様式!L43="","",提出様式!L43) ->  | J52: =IF(提出様式!M43="","",提出様式!M43) ->  | K52: =IF(提出様式!N43="","",提出様式!N43) -> 
B53: 20 | D53: =IF(提出様式!C44="","",提出様式!C44) ->  | F53: =IF(提出様式!I44="","",提出様式!I44) ->  | G53: =IF(提出様式!K44="","",(ROUNDUP(提出様式!K44/5,0))) ->  | H53: =IF(提出様式!H44="","",提出様式!H44) ->  | I53: =IF(提出様式!L44="","",提出様式!L44) ->  | J53: =IF(提出様式!M44="","",提出様式!M44) ->  | K53: =IF(提出様式!N44="","",提出様式!N44) -> 
B54: 21 | D54: =IF(提出様式!C45="","",提出様式!C45) ->  | F54: =IF(提出様式!I45="","",提出様式!I45) ->  | G54: =IF(提出様式!K45="","",(ROUNDUP(提出様式!K45/5,0))) ->  | H54: =IF(提出様式!H45="","",提出様式!H45) ->  | I54: =IF(提出様式!L45="","",提出様式!L45) ->  | J54: =IF(提出様式!M45="","",提出様式!M45) ->  | K54: =IF(提出様式!N45="","",提出様式!N45) -> 
B55: 22 | D55: =IF(提出様式!C46="","",提出様式!C46) ->  | F55: =IF(提出様式!I46="","",提出様式!I46) ->  | G55: =IF(提出様式!K46="","",(ROUNDUP(提出様式!K46/5,0))) ->  | H55: =IF(提出様式!H46="","",提出様式!H46) ->  | I55: =IF(提出様式!L46="","",提出様式!L46) ->  | J55: =IF(提出様式!M46="","",提出様式!M46) ->  | K55: =IF(提出様式!N46="","",提出様式!N46) -> 
B56: 23 | D56: =IF(提出様式!C47="","",提出様式!C47) ->  | F56: =IF(提出様式!I47="","",提出様式!I47) ->  | G56: =IF(提出様式!K47="","",(ROUNDUP(提出様式!K47/5,0))) ->  | H56: =IF(提出様式!H47="","",提出様式!H47) ->  | I56: =IF(提出様式!L47="","",提出様式!L47) ->  | J56: =IF(提出様式!M47="","",提出様式!M47) ->  | K56: =IF(提出様式!N47="","",提出様式!N47) -> 
B57: 24 | D57: =IF(提出様式!C48="","",提出様式!C48) ->  | F57: =IF(提出様式!I48="","",提出様式!I48) ->  | G57: =IF(提出様式!K48="","",(ROUNDUP(提出様式!K48/5,0))) ->  | H57: =IF(提出様式!H48="","",提出様式!H48) ->  | I57: =IF(提出様式!L48="","",提出様式!L48) ->  | J57: =IF(提出様式!M48="","",提出様式!M48) ->  | K57: =IF(提出様式!N48="","",提出様式!N48) -> 
B58: 25 | D58: =IF(提出様式!C49="","",提出様式!C49) ->  | F58: =IF(提出様式!I49="","",提出様式!I49) ->  | G58: =IF(提出様式!K49="","",(ROUNDUP(提出様式!K49/5,0))) ->  | H58: =IF(提出様式!H49="","",提出様式!H49) ->  | I58: =IF(提出様式!L49="","",提出様式!L49) ->  | J58: =IF(提出様式!M49="","",提出様式!M49) ->  | K58: =IF(提出様式!N49="","",提出様式!N49) -> 
B59: 26 | D59: =IF(提出様式!C50="","",提出様式!C50) ->  | F59: =IF(提出様式!I50="","",提出様式!I50) ->  | G59: =IF(提出様式!K50="","",(ROUNDUP(提出様式!K50/5,0))) ->  | H59: =IF(提出様式!H50="","",提出様式!H50) ->  | I59: =IF(提出様式!L50="","",提出様式!L50) ->  | J59: =IF(提出様式!M50="","",提出様式!M50) ->  | K59: =IF(提出様式!N50="","",提出様式!N50) -> 
B60: 27 | D60: =IF(提出様式!C51="","",提出様式!C51) ->  | F60: =IF(提出様式!I51="","",提出様式!I51) ->  | G60: =IF(提出様式!K51="","",(ROUNDUP(提出様式!K51/5,0))) ->  | H60: =IF(提出様式!H51="","",提出様式!H51) ->  | I60: =IF(提出様式!L51="","",提出様式!L51) ->  | J60: =IF(提出様式!M51="","",提出様式!M51) ->  | K60: =IF(提出様式!N51="","",提出様式!N51) -> 
B61: 28 | D61: =IF(提出様式!C52="","",提出様式!C52) ->  | F61: =IF(提出様式!I52="","",提出様式!I52) ->  | G61: =IF(提出様式!K52="","",(ROUNDUP(提出様式!K52/5,0))) ->  | H61: =IF(提出様式!H52="","",提出様式!H52) ->  | I61: =IF(提出様式!L52="","",提出様式!L52) ->  | J61: =IF(提出様式!M52="","",提出様式!M52) ->  | K61: =IF(提出様式!N52="","",提出様式!N52) -> 
B62: 29 | D62: =IF(提出様式!C53="","",提出様式!C53) ->  | F62: =IF(提出様式!I53="","",提出様式!I53) ->  | G62: =IF(提出様式!K53="","",(ROUNDUP(提出様式!K53/5,0))) ->  | H62: =IF(提出様式!H53="","",提出様式!H53) ->  | I62: =IF(提出様式!L53="","",提出様式!L53) ->  | J62: =IF(提出様式!M53="","",提出様式!M53) ->  | K62: =IF(提出様式!N53="","",提出様式!N53) -> 
B63: 30 | D63: =IF(提出様式!C54="","",提出様式!C54) ->  | F63: =IF(提出様式!I54="","",提出様式!I54) ->  | G63: =IF(提出様式!K54="","",(ROUNDUP(提出様式!K54/5,0))) ->  | H63: =IF(提出様式!H54="","",提出様式!H54) ->  | I63: =IF(提出様式!L54="","",提出様式!L54) ->  | J63: =IF(提出様式!M54="","",提出様式!M54) ->  | K63: =IF(提出様式!N54="","",提出様式!N54) -> 
B64: 31 | D64: =IF(提出様式!C55="","",提出様式!C55) ->  | F64: =IF(提出様式!I55="","",提出様式!I55) ->  | G64: =IF(提出様式!K55="","",(ROUNDUP(提出様式!K55/5,0))) ->  | H64: =IF(提出様式!H55="","",提出様式!H55) ->  | I64: =IF(提出様式!L55="","",提出様式!L55) ->  | J64: =IF(提出様式!M55="","",提出様式!M55) ->  | K64: =IF(提出様式!N55="","",提出様式!N55) -> 
B65: 32 | D65: =IF(提出様式!C56="","",提出様式!C56) ->  | F65: =IF(提出様式!I56="","",提出様式!I56) ->  | G65: =IF(提出様式!K56="","",(ROUNDUP(提出様式!K56/5,0))) ->  | H65: =IF(提出様式!H56="","",提出様式!H56) ->  | I65: =IF(提出様式!L56="","",提出様式!L56) ->  | J65: =IF(提出様式!M56="","",提出様式!M56) ->  | K65: =IF(提出様式!N56="","",提出様式!N56) -> 
B66: 33 | D66: =IF(提出様式!C57="","",提出様式!C57) ->  | F66: =IF(提出様式!I57="","",提出様式!I57) ->  | G66: =IF(提出様式!K57="","",(ROUNDUP(提出様式!K57/5,0))) ->  | H66: =IF(提出様式!H57="","",提出様式!H57) ->  | I66: =IF(提出様式!L57="","",提出様式!L57) ->  | J66: =IF(提出様式!M57="","",提出様式!M57) ->  | K66: =IF(提出様式!N57="","",提出様式!N57) -> 
B67: 34 | D67: =IF(提出様式!C58="","",提出様式!C58) ->  | F67: =IF(提出様式!I58="","",提出様式!I58) ->  | G67: =IF(提出様式!K58="","",(ROUNDUP(提出様式!K58/5,0))) ->  | H67: =IF(提出様式!H58="","",提出様式!H58) ->  | I67: =IF(提出様式!L58="","",提出様式!L58) ->  | J67: =IF(提出様式!M58="","",提出様式!M58) ->  | K67: =IF(提出様式!N58="","",提出様式!N58) -> 
B68: 35 | D68: =IF(提出様式!C59="","",提出様式!C59) ->  | F68: =IF(提出様式!I59="","",提出様式!I59) ->  | G68: =IF(提出様式!K59="","",(ROUNDUP(提出様式!K59/5,0))) ->  | H68: =IF(提出様式!H59="","",提出様式!H59) ->  | I68: =IF(提出様式!L59="","",提出様式!L59) ->  | J68: =IF(提出様式!M59="","",提出様式!M59) ->  | K68: =IF(提出様式!N59="","",提出様式!N59) -> 
B69: 36 | D69: =IF(提出様式!C60="","",提出様式!C60) ->  | F69: =IF(提出様式!I60="","",提出様式!I60) ->  | G69: =IF(提出様式!K60="","",(ROUNDUP(提出様式!K60/5,0))) ->  | H69: =IF(提出様式!H60="","",提出様式!H60) ->  | I69: =IF(提出様式!L60="","",提出様式!L60) ->  | J69: =IF(提出様式!M60="","",提出様式!M60) ->  | K69: =IF(提出様式!N60="","",提出様式!N60) -> 
B70: 37 | D70: =IF(提出様式!C61="","",提出様式!C61) ->  | F70: =IF(提出様式!I61="","",提出様式!I61) ->  | G70: =IF(提出様式!K61="","",(ROUNDUP(提出様式!K61/5,0))) ->  | H70: =IF(提出様式!H61="","",提出様式!H61) ->  | I70: =IF(提出様式!L61="","",提出様式!L61) ->  | J70: =IF(提出様式!M61="","",提出様式!M61) ->  | K70: =IF(提出様式!N61="","",提出様式!N61) -> 
B71: 38 | D71: =IF(提出様式!C62="","",提出様式!C62) ->  | F71: =IF(提出様式!I62="","",提出様式!I62) ->  | G71: =IF(提出様式!K62="","",(ROUNDUP(提出様式!K62/5,0))) ->  | H71: =IF(提出様式!H62="","",提出様式!H62) ->  | I71: =IF(提出様式!L62="","",提出様式!L62) ->  | J71: =IF(提出様式!M62="","",提出様式!M62) ->  | K71: =IF(提出様式!N62="","",提出様式!N62) -> 
B72: 39 | D72: =IF(提出様式!C63="","",提出様式!C63) ->  | F72: =IF(提出様式!I63="","",提出様式!I63) ->  | G72: =IF(提出様式!K63="","",(ROUNDUP(提出様式!K63/5,0))) ->  | H72: =IF(提出様式!H63="","",提出様式!H63) ->  | I72: =IF(提出様式!L63="","",提出様式!L63) ->  | J72: =IF(提出様式!M63="","",提出様式!M63) ->  | K72: =IF(提出様式!N63="","",提出様式!N63) -> 
B73: 40 | D73: =IF(提出様式!C64="","",提出様式!C64) ->  | F73: =IF(提出様式!I64="","",提出様式!I64) ->  | G73: =IF(提出様式!K64="","",(ROUNDUP(提出様式!K64/5,0))) ->  | H73: =IF(提出様式!H64="","",提出様式!H64) ->  | I73: =IF(提出様式!L64="","",提出様式!L64) ->  | J73: =IF(提出様式!M64="","",提出様式!M64) ->  | K73: =IF(提出様式!N64="","",提出様式!N64) -> 
B74: 41 | D74: =IF(提出様式!C65="","",提出様式!C65) ->  | F74: =IF(提出様式!I65="","",提出様式!I65) ->  | G74: =IF(提出様式!K65="","",(ROUNDUP(提出様式!K65/5,0))) ->  | H74: =IF(提出様式!H65="","",提出様式!H65) ->  | I74: =IF(提出様式!L65="","",提出様式!L65) ->  | J74: =IF(提出様式!M65="","",提出様式!M65) ->  | K74: =IF(提出様式!N65="","",提出様式!N65) -> 
B75: 42 | D75: =IF(提出様式!C66="","",提出様式!C66) ->  | F75: =IF(提出様式!I66="","",提出様式!I66) ->  | G75: =IF(提出様式!K66="","",(ROUNDUP(提出様式!K66/5,0))) ->  | H75: =IF(提出様式!H66="","",提出様式!H66) ->  | I75: =IF(提出様式!L66="","",提出様式!L66) ->  | J75: =IF(提出様式!M66="","",提出様式!M66) ->  | K75: =IF(提出様式!N66="","",提出様式!N66) -> 
B76: 43 | D76: =IF(提出様式!C67="","",提出様式!C67) ->  | F76: =IF(提出様式!I67="","",提出様式!I67) ->  | G76: =IF(提出様式!K67="","",(ROUNDUP(提出様式!K67/5,0))) ->  | H76: =IF(提出様式!H67="","",提出様式!H67) ->  | I76: =IF(提出様式!L67="","",提出様式!L67) ->  | J76: =IF(提出様式!M67="","",提出様式!M67) ->  | K76: =IF(提出様式!N67="","",提出様式!N67) -> 
B77: 44 | D77: =IF(提出様式!C68="","",提出様式!C68) ->  | F77: =IF(提出様式!I68="","",提出様式!I68) ->  | G77: =IF(提出様式!K68="","",(ROUNDUP(提出様式!K68/5,0))) ->  | H77: =IF(提出様式!H68="","",提出様式!H68) ->  | I77: =IF(提出様式!L68="","",提出様式!L68) ->  | J77: =IF(提出様式!M68="","",提出様式!M68) ->  | K77: =IF(提出様式!N68="","",提出様式!N68) -> 
B78: 45 | D78: =IF(提出様式!C69="","",提出様式!C69) ->  | F78: =IF(提出様式!I69="","",提出様式!I69) ->  | G78: =IF(提出様式!K69="","",(ROUNDUP(提出様式!K69/5,0))) ->  | H78: =IF(提出様式!H69="","",提出様式!H69) ->  | I78: =IF(提出様式!L69="","",提出様式!L69) ->  | J78: =IF(提出様式!M69="","",提出様式!M69) ->  | K78: =IF(提出様式!N69="","",提出様式!N69) -> 
B79: 46 | D79: =IF(提出様式!C70="","",提出様式!C70) ->  | F79: =IF(提出様式!I70="","",提出様式!I70) ->  | G79: =IF(提出様式!K70="","",(ROUNDUP(提出様式!K70/5,0))) ->  | H79: =IF(提出様式!H70="","",提出様式!H70) ->  | I79: =IF(提出様式!L70="","",提出様式!L70) ->  | J79: =IF(提出様式!M70="","",提出様式!M70) ->  | K79: =IF(提出様式!N70="","",提出様式!N70) -> 
B80: 47 | D80: =IF(提出様式!C71="","",提出様式!C71) ->  | F80: =IF(提出様式!I71="","",提出様式!I71) ->  | G80: =IF(提出様式!K71="","",(ROUNDUP(提出様式!K71/5,0))) ->  | H80: =IF(提出様式!H71="","",提出様式!H71) ->  | I80: =IF(提出様式!L71="","",提出様式!L71) ->  | J80: =IF(提出様式!M71="","",提出様式!M71) ->  | K80: =IF(提出様式!N71="","",提出様式!N71) -> 
B81: 48 | D81: =IF(提出様式!C72="","",提出様式!C72) ->  | F81: =IF(提出様式!I72="","",提出様式!I72) ->  | G81: =IF(提出様式!K72="","",(ROUNDUP(提出様式!K72/5,0))) ->  | H81: =IF(提出様式!H72="","",提出様式!H72) ->  | I81: =IF(提出様式!L72="","",提出様式!L72) ->  | J81: =IF(提出様式!M72="","",提出様式!M72) ->  | K81: =IF(提出様式!N72="","",提出様式!N72) -> 
B82: 49 | D82: =IF(提出様式!C73="","",提出様式!C73) ->  | F82: =IF(提出様式!I73="","",提出様式!I73) ->  | G82: =IF(提出様式!K73="","",(ROUNDUP(提出様式!K73/5,0))) ->  | H82: =IF(提出様式!H73="","",提出様式!H73) ->  | I82: =IF(提出様式!L73="","",提出様式!L73) ->  | J82: =IF(提出様式!M73="","",提出様式!M73) ->  | K82: =IF(提出様式!N73="","",提出様式!N73) -> 
B83: 50 | D83: =IF(提出様式!C74="","",提出様式!C74) ->  | F83: =IF(提出様式!I74="","",提出様式!I74) ->  | G83: =IF(提出様式!K74="","",(ROUNDUP(提出様式!K74/5,0))) ->  | H83: =IF(提出様式!H74="","",提出様式!H74) ->  | I83: =IF(提出様式!L74="","",提出様式!L74) ->  | J83: =IF(提出様式!M74="","",提出様式!M74) ->  | K83: =IF(提出様式!N74="","",提出様式!N74) -> 
B84: 51 | D84: =IF(提出様式!C75="","",提出様式!C75) ->  | F84: =IF(提出様式!I75="","",提出様式!I75) ->  | G84: =IF(提出様式!K75="","",(ROUNDUP(提出様式!K75/5,0))) ->  | H84: =IF(提出様式!H75="","",提出様式!H75) ->  | I84: =IF(提出様式!L75="","",提出様式!L75) ->  | J84: =IF(提出様式!M75="","",提出様式!M75) ->  | K84: =IF(提出様式!N75="","",提出様式!N75) -> 
B85: 52 | D85: =IF(提出様式!C76="","",提出様式!C76) ->  | F85: =IF(提出様式!I76="","",提出様式!I76) ->  | G85: =IF(提出様式!K76="","",(ROUNDUP(提出様式!K76/5,0))) ->  | H85: =IF(提出様式!H76="","",提出様式!H76) ->  | I85: =IF(提出様式!L76="","",提出様式!L76) ->  | J85: =IF(提出様式!M76="","",提出様式!M76) ->  | K85: =IF(提出様式!N76="","",提出様式!N76) -> 
B86: 53 | D86: =IF(提出様式!C77="","",提出様式!C77) ->  | F86: =IF(提出様式!I77="","",提出様式!I77) ->  | G86: =IF(提出様式!K77="","",(ROUNDUP(提出様式!K77/5,0))) ->  | H86: =IF(提出様式!H77="","",提出様式!H77) ->  | I86: =IF(提出様式!L77="","",提出様式!L77) ->  | J86: =IF(提出様式!M77="","",提出様式!M77) ->  | K86: =IF(提出様式!N77="","",提出様式!N77) -> 
B87: 54 | D87: =IF(提出様式!C78="","",提出様式!C78) ->  | F87: =IF(提出様式!I78="","",提出様式!I78) ->  | G87: =IF(提出様式!K78="","",(ROUNDUP(提出様式!K78/5,0))) ->  | H87: =IF(提出様式!H78="","",提出様式!H78) ->  | I87: =IF(提出様式!L78="","",提出様式!L78) ->  | J87: =IF(提出様式!M78="","",提出様式!M78) ->  | K87: =IF(提出様式!N78="","",提出様式!N78) -> 
B88: 55 | D88: =IF(提出様式!C79="","",提出様式!C79) ->  | F88: =IF(提出様式!I79="","",提出様式!I79) ->  | G88: =IF(提出様式!K79="","",(ROUNDUP(提出様式!K79/5,0))) ->  | H88: =IF(提出様式!H79="","",提出様式!H79) ->  | I88: =IF(提出様式!L79="","",提出様式!L79) ->  | J88: =IF(提出様式!M79="","",提出様式!M79) ->  | K88: =IF(提出様式!N79="","",提出様式!N79) -> 
B89: 56 | D89: =IF(提出様式!C80="","",提出様式!C80) ->  | F89: =IF(提出様式!I80="","",提出様式!I80) ->  | G89: =IF(提出様式!K80="","",(ROUNDUP(提出様式!K80/5,0))) ->  | H89: =IF(提出様式!H80="","",提出様式!H80) ->  | I89: =IF(提出様式!L80="","",提出様式!L80) ->  | J89: =IF(提出様式!M80="","",提出様式!M80) ->  | K89: =IF(提出様式!N80="","",提出様式!N80) -> 
B90: 57 | D90: =IF(提出様式!C81="","",提出様式!C81) ->  | F90: =IF(提出様式!I81="","",提出様式!I81) ->  | G90: =IF(提出様式!K81="","",(ROUNDUP(提出様式!K81/5,0))) ->  | H90: =IF(提出様式!H81="","",提出様式!H81) ->  | I90: =IF(提出様式!L81="","",提出様式!L81) ->  | J90: =IF(提出様式!M81="","",提出様式!M81) ->  | K90: =IF(提出様式!N81="","",提出様式!N81) -> 
B91: 58 | D91: =IF(提出様式!C82="","",提出様式!C82) ->  | F91: =IF(提出様式!I82="","",提出様式!I82) ->  | G91: =IF(提出様式!K82="","",(ROUNDUP(提出様式!K82/5,0))) ->  | H91: =IF(提出様式!H82="","",提出様式!H82) ->  | I91: =IF(提出様式!L82="","",提出様式!L82) ->  | J91: =IF(提出様式!M82="","",提出様式!M82) ->  | K91: =IF(提出様式!N82="","",提出様式!N82) -> 
B92: 59 | D92: =IF(提出様式!C83="","",提出様式!C83) ->  | F92: =IF(提出様式!I83="","",提出様式!I83) ->  | G92: =IF(提出様式!K83="","",(ROUNDUP(提出様式!K83/5,0))) ->  | H92: =IF(提出様式!H83="","",提出様式!H83) ->  | I92: =IF(提出様式!L83="","",提出様式!L83) ->  | J92: =IF(提出様式!M83="","",提出様式!M83) ->  | K92: =IF(提出様式!N83="","",提出様式!N83) -> 
B93: 60 | D93: =IF(提出様式!C84="","",提出様式!C84) ->  | F93: =IF(提出様式!I84="","",提出様式!I84) ->  | G93: =IF(提出様式!K84="","",(ROUNDUP(提出様式!K84/5,0))) ->  | H93: =IF(提出様式!H84="","",提出様式!H84) ->  | I93: =IF(提出様式!L84="","",提出様式!L84) ->  | J93: =IF(提出様式!M84="","",提出様式!M84) ->  | K93: =IF(提出様式!N84="","",提出様式!N84) -> 
B94: 61 | D94: =IF(提出様式!C85="","",提出様式!C85) ->  | F94: =IF(提出様式!I85="","",提出様式!I85) ->  | G94: =IF(提出様式!K85="","",(ROUNDUP(提出様式!K85/5,0))) ->  | H94: =IF(提出様式!H85="","",提出様式!H85) ->  | I94: =IF(提出様式!L85="","",提出様式!L85) ->  | J94: =IF(提出様式!M85="","",提出様式!M85) ->  | K94: =IF(提出様式!N85="","",提出様式!N85) -> 
B95: 62 | D95: =IF(提出様式!C86="","",提出様式!C86) ->  | F95: =IF(提出様式!I86="","",提出様式!I86) ->  | G95: =IF(提出様式!K86="","",(ROUNDUP(提出様式!K86/5,0))) ->  | H95: =IF(提出様式!H86="","",提出様式!H86) ->  | I95: =IF(提出様式!L86="","",提出様式!L86) ->  | J95: =IF(提出様式!M86="","",提出様式!M86) ->  | K95: =IF(提出様式!N86="","",提出様式!N86) -> 
B96: 63 | D96: =IF(提出様式!C87="","",提出様式!C87) ->  | F96: =IF(提出様式!I87="","",提出様式!I87) ->  | G96: =IF(提出様式!K87="","",(ROUNDUP(提出様式!K87/5,0))) ->  | H96: =IF(提出様式!H87="","",提出様式!H87) ->  | I96: =IF(提出様式!L87="","",提出様式!L87) ->  | J96: =IF(提出様式!M87="","",提出様式!M87) ->  | K96: =IF(提出様式!N87="","",提出様式!N87) -> 
B97: 64 | D97: =IF(提出様式!C88="","",提出様式!C88) ->  | F97: =IF(提出様式!I88="","",提出様式!I88) ->  | G97: =IF(提出様式!K88="","",(ROUNDUP(提出様式!K88/5,0))) ->  | H97: =IF(提出様式!H88="","",提出様式!H88) ->  | I97: =IF(提出様式!L88="","",提出様式!L88) ->  | J97: =IF(提出様式!M88="","",提出様式!M88) ->  | K97: =IF(提出様式!N88="","",提出様式!N88) -> 
B98: 65 | D98: =IF(提出様式!C89="","",提出様式!C89) ->  | F98: =IF(提出様式!I89="","",提出様式!I89) ->  | G98: =IF(提出様式!K89="","",(ROUNDUP(提出様式!K89/5,0))) ->  | H98: =IF(提出様式!H89="","",提出様式!H89) ->  | I98: =IF(提出様式!L89="","",提出様式!L89) ->  | J98: =IF(提出様式!M89="","",提出様式!M89) ->  | K98: =IF(提出様式!N89="","",提出様式!N89) -> 
B99: 66 | D99: =IF(提出様式!C90="","",提出様式!C90) ->  | F99: =IF(提出様式!I90="","",提出様式!I90) ->  | G99: =IF(提出様式!K90="","",(ROUNDUP(提出様式!K90/5,0))) ->  | H99: =IF(提出様式!H90="","",提出様式!H90) ->  | I99: =IF(提出様式!L90="","",提出様式!L90) ->  | J99: =IF(提出様式!M90="","",提出様式!M90) ->  | K99: =IF(提出様式!N90="","",提出様式!N90) -> 
B100: 67 | D100: =IF(提出様式!C91="","",提出様式!C91) ->  | F100: =IF(提出様式!I91="","",提出様式!I91) ->  | G100: =IF(提出様式!K91="","",(ROUNDUP(提出様式!K91/5,0))) ->  | H100: =IF(提出様式!H91="","",提出様式!H91) ->  | I100: =IF(提出様式!L91="","",提出様式!L91) ->  | J100: =IF(提出様式!M91="","",提出様式!M91) ->  | K100: =IF(提出様式!N91="","",提出様式!N91) -> 
B101: 68 | D101: =IF(提出様式!C92="","",提出様式!C92) ->  | F101: =IF(提出様式!I92="","",提出様式!I92) ->  | G101: =IF(提出様式!K92="","",(ROUNDUP(提出様式!K92/5,0))) ->  | H101: =IF(提出様式!H92="","",提出様式!H92) ->  | I101: =IF(提出様式!L92="","",提出様式!L92) ->  | J101: =IF(提出様式!M92="","",提出様式!M92) ->  | K101: =IF(提出様式!N92="","",提出様式!N92) -> 
B102: 69 | D102: =IF(提出様式!C93="","",提出様式!C93) ->  | F102: =IF(提出様式!I93="","",提出様式!I93) ->  | G102: =IF(提出様式!K93="","",(ROUNDUP(提出様式!K93/5,0))) ->  | H102: =IF(提出様式!H93="","",提出様式!H93) ->  | I102: =IF(提出様式!L93="","",提出様式!L93) ->  | J102: =IF(提出様式!M93="","",提出様式!M93) ->  | K102: =IF(提出様式!N93="","",提出様式!N93) -> 
B103: 70 | D103: =IF(提出様式!C94="","",提出様式!C94) ->  | F103: =IF(提出様式!I94="","",提出様式!I94) ->  | G103: =IF(提出様式!K94="","",(ROUNDUP(提出様式!K94/5,0))) ->  | H103: =IF(提出様式!H94="","",提出様式!H94) ->  | I103: =IF(提出様式!L94="","",提出様式!L94) ->  | J103: =IF(提出様式!M94="","",提出様式!M94) ->  | K103: =IF(提出様式!N94="","",提出様式!N94) -> 
B104: 71 | D104: =IF(提出様式!C95="","",提出様式!C95) ->  | F104: =IF(提出様式!I95="","",提出様式!I95) ->  | G104: =IF(提出様式!K95="","",(ROUNDUP(提出様式!K95/5,0))) ->  | H104: =IF(提出様式!H95="","",提出様式!H95) ->  | I104: =IF(提出様式!L95="","",提出様式!L95) ->  | J104: =IF(提出様式!M95="","",提出様式!M95) ->  | K104: =IF(提出様式!N95="","",提出様式!N95) -> 
B105: 72 | D105: =IF(提出様式!C96="","",提出様式!C96) ->  | F105: =IF(提出様式!I96="","",提出様式!I96) ->  | G105: =IF(提出様式!K96="","",(ROUNDUP(提出様式!K96/5,0))) ->  | H105: =IF(提出様式!H96="","",提出様式!H96) ->  | I105: =IF(提出様式!L96="","",提出様式!L96) ->  | J105: =IF(提出様式!M96="","",提出様式!M96) ->  | K105: =IF(提出様式!N96="","",提出様式!N96) -> 
B106: 73 | D106: =IF(提出様式!C97="","",提出様式!C97) ->  | F106: =IF(提出様式!I97="","",提出様式!I97) ->  | G106: =IF(提出様式!K97="","",(ROUNDUP(提出様式!K97/5,0))) ->  | H106: =IF(提出様式!H97="","",提出様式!H97) ->  | I106: =IF(提出様式!L97="","",提出様式!L97) ->  | J106: =IF(提出様式!M97="","",提出様式!M97) ->  | K106: =IF(提出様式!N97="","",提出様式!N97) -> 
B107: 74 | D107: =IF(提出様式!C98="","",提出様式!C98) ->  | F107: =IF(提出様式!I98="","",提出様式!I98) ->  | G107: =IF(提出様式!K98="","",(ROUNDUP(提出様式!K98/5,0))) ->  | H107: =IF(提出様式!H98="","",提出様式!H98) ->  | I107: =IF(提出様式!L98="","",提出様式!L98) ->  | J107: =IF(提出様式!M98="","",提出様式!M98) ->  | K107: =IF(提出様式!N98="","",提出様式!N98) -> 
B108: 75 | D108: =IF(提出様式!C99="","",提出様式!C99) ->  | F108: =IF(提出様式!I99="","",提出様式!I99) ->  | G108: =IF(提出様式!K99="","",(ROUNDUP(提出様式!K99/5,0))) ->  | H108: =IF(提出様式!H99="","",提出様式!H99) ->  | I108: =IF(提出様式!L99="","",提出様式!L99) ->  | J108: =IF(提出様式!M99="","",提出様式!M99) ->  | K108: =IF(提出様式!N99="","",提出様式!N99) -> 
B109: 76 | D109: =IF(提出様式!C100="","",提出様式!C100) ->  | F109: =IF(提出様式!I100="","",提出様式!I100) ->  | G109: =IF(提出様式!K100="","",(ROUNDUP(提出様式!K100/5,0))) ->  | H109: =IF(提出様式!H100="","",提出様式!H100) ->  | I109: =IF(提出様式!L100="","",提出様式!L100) ->  | J109: =IF(提出様式!M100="","",提出様式!M100) ->  | K109: =IF(提出様式!N100="","",提出様式!N100) -> 
B110: 77 | D110: =IF(提出様式!C101="","",提出様式!C101) ->  | F110: =IF(提出様式!I101="","",提出様式!I101) ->  | G110: =IF(提出様式!K101="","",(ROUNDUP(提出様式!K101/5,0))) ->  | H110: =IF(提出様式!H101="","",提出様式!H101) ->  | I110: =IF(提出様式!L101="","",提出様式!L101) ->  | J110: =IF(提出様式!M101="","",提出様式!M101) ->  | K110: =IF(提出様式!N101="","",提出様式!N101) -> 
B111: 78 | D111: =IF(提出様式!C102="","",提出様式!C102) ->  | F111: =IF(提出様式!I102="","",提出様式!I102) ->  | G111: =IF(提出様式!K102="","",(ROUNDUP(提出様式!K102/5,0))) ->  | H111: =IF(提出様式!H102="","",提出様式!H102) ->  | I111: =IF(提出様式!L102="","",提出様式!L102) ->  | J111: =IF(提出様式!M102="","",提出様式!M102) ->  | K111: =IF(提出様式!N102="","",提出様式!N102) -> 
B112: 79 | D112: =IF(提出様式!C103="","",提出様式!C103) ->  | F112: =IF(提出様式!I103="","",提出様式!I103) ->  | G112: =IF(提出様式!K103="","",(ROUNDUP(提出様式!K103/5,0))) ->  | H112: =IF(提出様式!H103="","",提出様式!H103) ->  | I112: =IF(提出様式!L103="","",提出様式!L103) ->  | J112: =IF(提出様式!M103="","",提出様式!M103) ->  | K112: =IF(提出様式!N103="","",提出様式!N103) -> 
B113: 80 | D113: =IF(提出様式!C104="","",提出様式!C104) ->  | F113: =IF(提出様式!I104="","",提出様式!I104) ->  | G113: =IF(提出様式!K104="","",(ROUNDUP(提出様式!K104/5,0))) ->  | H113: =IF(提出様式!H104="","",提出様式!H104) ->  | I113: =IF(提出様式!L104="","",提出様式!L104) ->  | J113: =IF(提出様式!M104="","",提出様式!M104) ->  | K113: =IF(提出様式!N104="","",提出様式!N104) -> 
B114: 81 | D114: =IF(提出様式!C105="","",提出様式!C105) ->  | F114: =IF(提出様式!I105="","",提出様式!I105) ->  | G114: =IF(提出様式!K105="","",(ROUNDUP(提出様式!K105/5,0))) ->  | H114: =IF(提出様式!H105="","",提出様式!H105) ->  | I114: =IF(提出様式!L105="","",提出様式!L105) ->  | J114: =IF(提出様式!M105="","",提出様式!M105) ->  | K114: =IF(提出様式!N105="","",提出様式!N105) -> 
B115: 82 | D115: =IF(提出様式!C106="","",提出様式!C106) ->  | F115: =IF(提出様式!I106="","",提出様式!I106) ->  | G115: =IF(提出様式!K106="","",(ROUNDUP(提出様式!K106/5,0))) ->  | H115: =IF(提出様式!H106="","",提出様式!H106) ->  | I115: =IF(提出様式!L106="","",提出様式!L106) ->  | J115: =IF(提出様式!M106="","",提出様式!M106) ->  | K115: =IF(提出様式!N106="","",提出様式!N106) -> 
B116: 83 | D116: =IF(提出様式!C107="","",提出様式!C107) ->  | F116: =IF(提出様式!I107="","",提出様式!I107) ->  | G116: =IF(提出様式!K107="","",(ROUNDUP(提出様式!K107/5,0))) ->  | H116: =IF(提出様式!H107="","",提出様式!H107) ->  | I116: =IF(提出様式!L107="","",提出様式!L107) ->  | J116: =IF(提出様式!M107="","",提出様式!M107) ->  | K116: =IF(提出様式!N107="","",提出様式!N107) -> 
B117: 84 | D117: =IF(提出様式!C108="","",提出様式!C108) ->  | F117: =IF(提出様式!I108="","",提出様式!I108) ->  | G117: =IF(提出様式!K108="","",(ROUNDUP(提出様式!K108/5,0))) ->  | H117: =IF(提出様式!H108="","",提出様式!H108) ->  | I117: =IF(提出様式!L108="","",提出様式!L108) ->  | J117: =IF(提出様式!M108="","",提出様式!M108) ->  | K117: =IF(提出様式!N108="","",提出様式!N108) -> 
B118: 85 | D118: =IF(提出様式!C109="","",提出様式!C109) ->  | F118: =IF(提出様式!I109="","",提出様式!I109) ->  | G118: =IF(提出様式!K109="","",(ROUNDUP(提出様式!K109/5,0))) ->  | H118: =IF(提出様式!H109="","",提出様式!H109) ->  | I118: =IF(提出様式!L109="","",提出様式!L109) ->  | J118: =IF(提出様式!M109="","",提出様式!M109) ->  | K118: =IF(提出様式!N109="","",提出様式!N109) -> 
B119: 86 | D119: =IF(提出様式!C110="","",提出様式!C110) ->  | F119: =IF(提出様式!I110="","",提出様式!I110) ->  | G119: =IF(提出様式!K110="","",(ROUNDUP(提出様式!K110/5,0))) ->  | H119: =IF(提出様式!H110="","",提出様式!H110) ->  | I119: =IF(提出様式!L110="","",提出様式!L110) ->  | J119: =IF(提出様式!M110="","",提出様式!M110) ->  | K119: =IF(提出様式!N110="","",提出様式!N110) -> 
B120: 87 | D120: =IF(提出様式!C111="","",提出様式!C111) ->  | F120: =IF(提出様式!I111="","",提出様式!I111) ->  | G120: =IF(提出様式!K111="","",(ROUNDUP(提出様式!K111/5,0))) ->  | H120: =IF(提出様式!H111="","",提出様式!H111) ->  | I120: =IF(提出様式!L111="","",提出様式!L111) ->  | J120: =IF(提出様式!M111="","",提出様式!M111) ->  | K120: =IF(提出様式!N111="","",提出様式!N111) -> 
B121: 88 | D121: =IF(提出様式!C112="","",提出様式!C112) ->  | F121: =IF(提出様式!I112="","",提出様式!I112) ->  | G121: =IF(提出様式!K112="","",(ROUNDUP(提出様式!K112/5,0))) ->  | H121: =IF(提出様式!H112="","",提出様式!H112) ->  | I121: =IF(提出様式!L112="","",提出様式!L112) ->  | J121: =IF(提出様式!M112="","",提出様式!M112) ->  | K121: =IF(提出様式!N112="","",提出様式!N112) -> 
B122: 89 | D122: =IF(提出様式!C113="","",提出様式!C113) ->  | F122: =IF(提出様式!I113="","",提出様式!I113) ->  | G122: =IF(提出様式!K113="","",(ROUNDUP(提出様式!K113/5,0))) ->  | H122: =IF(提出様式!H113="","",提出様式!H113) ->  | I122: =IF(提出様式!L113="","",提出様式!L113) ->  | J122: =IF(提出様式!M113="","",提出様式!M113) ->  | K122: =IF(提出様式!N113="","",提出様式!N113) -> 
B123: 90 | D123: =IF(提出様式!C114="","",提出様式!C114) ->  | F123: =IF(提出様式!I114="","",提出様式!I114) ->  | G123: =IF(提出様式!K114="","",(ROUNDUP(提出様式!K114/5,0))) ->  | H123: =IF(提出様式!H114="","",提出様式!H114) ->  | I123: =IF(提出様式!L114="","",提出様式!L114) ->  | J123: =IF(提出様式!M114="","",提出様式!M114) ->  | K123: =IF(提出様式!N114="","",提出様式!N114) -> 
B124: 91 | D124: =IF(提出様式!C115="","",提出様式!C115) ->  | F124: =IF(提出様式!I115="","",提出様式!I115) ->  | G124: =IF(提出様式!K115="","",(ROUNDUP(提出様式!K115/5,0))) ->  | H124: =IF(提出様式!H115="","",提出様式!H115) ->  | I124: =IF(提出様式!L115="","",提出様式!L115) ->  | J124: =IF(提出様式!M115="","",提出様式!M115) ->  | K124: =IF(提出様式!N115="","",提出様式!N115) -> 
B125: 92 | D125: =IF(提出様式!C116="","",提出様式!C116) ->  | F125: =IF(提出様式!I116="","",提出様式!I116) ->  | G125: =IF(提出様式!K116="","",(ROUNDUP(提出様式!K116/5,0))) ->  | H125: =IF(提出様式!H116="","",提出様式!H116) ->  | I125: =IF(提出様式!L116="","",提出様式!L116) ->  | J125: =IF(提出様式!M116="","",提出様式!M116) ->  | K125: =IF(提出様式!N116="","",提出様式!N116) -> 
B126: 93 | D126: =IF(提出様式!C117="","",提出様式!C117) ->  | F126: =IF(提出様式!I117="","",提出様式!I117) ->  | G126: =IF(提出様式!K117="","",(ROUNDUP(提出様式!K117/5,0))) ->  | H126: =IF(提出様式!H117="","",提出様式!H117) ->  | I126: =IF(提出様式!L117="","",提出様式!L117) ->  | J126: =IF(提出様式!M117="","",提出様式!M117) ->  | K126: =IF(提出様式!N117="","",提出様式!N117) -> 
B127: 94 | D127: =IF(提出様式!C118="","",提出様式!C118) ->  | F127: =IF(提出様式!I118="","",提出様式!I118) ->  | G127: =IF(提出様式!K118="","",(ROUNDUP(提出様式!K118/5,0))) ->  | H127: =IF(提出様式!H118="","",提出様式!H118) ->  | I127: =IF(提出様式!L118="","",提出様式!L118) ->  | J127: =IF(提出様式!M118="","",提出様式!M118) ->  | K127: =IF(提出様式!N118="","",提出様式!N118) -> 
B128: 95 | D128: =IF(提出様式!C119="","",提出様式!C119) ->  | F128: =IF(提出様式!I119="","",提出様式!I119) ->  | G128: =IF(提出様式!K119="","",(ROUNDUP(提出様式!K119/5,0))) ->  | H128: =IF(提出様式!H119="","",提出様式!H119) ->  | I128: =IF(提出様式!L119="","",提出様式!L119) ->  | J128: =IF(提出様式!M119="","",提出様式!M119) ->  | K128: =IF(提出様式!N119="","",提出様式!N119) -> 
B129: 96 | D129: =IF(提出様式!C120="","",提出様式!C120) ->  | F129: =IF(提出様式!I120="","",提出様式!I120) ->  | G129: =IF(提出様式!K120="","",(ROUNDUP(提出様式!K120/5,0))) ->  | H129: =IF(提出様式!H120="","",提出様式!H120) ->  | I129: =IF(提出様式!L120="","",提出様式!L120) ->  | J129: =IF(提出様式!M120="","",提出様式!M120) ->  | K129: =IF(提出様式!N120="","",提出様式!N120) -> 
B130: 97 | D130: =IF(提出様式!C121="","",提出様式!C121) ->  | F130: =IF(提出様式!I121="","",提出様式!I121) ->  | G130: =IF(提出様式!K121="","",(ROUNDUP(提出様式!K121/5,0))) ->  | H130: =IF(提出様式!H121="","",提出様式!H121) ->  | I130: =IF(提出様式!L121="","",提出様式!L121) ->  | J130: =IF(提出様式!M121="","",提出様式!M121) ->  | K130: =IF(提出様式!N121="","",提出様式!N121) -> 
B131: 98 | D131: =IF(提出様式!C122="","",提出様式!C122) ->  | F131: =IF(提出様式!I122="","",提出様式!I122) ->  | G131: =IF(提出様式!K122="","",(ROUNDUP(提出様式!K122/5,0))) ->  | H131: =IF(提出様式!H122="","",提出様式!H122) ->  | I131: =IF(提出様式!L122="","",提出様式!L122) ->  | J131: =IF(提出様式!M122="","",提出様式!M122) ->  | K131: =IF(提出様式!N122="","",提出様式!N122) -> 
B132: 99 | D132: =IF(提出様式!C123="","",提出様式!C123) ->  | F132: =IF(提出様式!I123="","",提出様式!I123) ->  | G132: =IF(提出様式!K123="","",(ROUNDUP(提出様式!K123/5,0))) ->  | H132: =IF(提出様式!H123="","",提出様式!H123) ->  | I132: =IF(提出様式!L123="","",提出様式!L123) ->  | J132: =IF(提出様式!M123="","",提出様式!M123) ->  | K132: =IF(提出様式!N123="","",提出様式!N123) -> 
B133: 100 | D133: =IF(提出様式!C124="","",提出様式!C124) ->  | F133: =IF(提出様式!I124="","",提出様式!I124) ->  | G133: =IF(提出様式!K124="","",(ROUNDUP(提出様式!K124/5,0))) ->  | H133: =IF(提出様式!H124="","",提出様式!H124) ->  | I133: =IF(提出様式!L124="","",提出様式!L124) ->  | J133: =IF(提出様式!M124="","",提出様式!M124) ->  | K133: =IF(提出様式!N124="","",提出様式!N124) -> 
B134: 101 | D134: =IF(提出様式!C125="","",提出様式!C125) ->  | F134: =IF(提出様式!I125="","",提出様式!I125) ->  | G134: =IF(提出様式!K125="","",(ROUNDUP(提出様式!K125/5,0))) ->  | H134: =IF(提出様式!H125="","",提出様式!H125) ->  | I134: =IF(提出様式!L125="","",提出様式!L125) ->  | J134: =IF(提出様式!M125="","",提出様式!M125) ->  | K134: =IF(提出様式!N125="","",提出様式!N125) -> 
B135: 102 | D135: =IF(提出様式!C126="","",提出様式!C126) ->  | F135: =IF(提出様式!I126="","",提出様式!I126) ->  | G135: =IF(提出様式!K126="","",(ROUNDUP(提出様式!K126/5,0))) ->  | H135: =IF(提出様式!H126="","",提出様式!H126) ->  | I135: =IF(提出様式!L126="","",提出様式!L126) ->  | J135: =IF(提出様式!M126="","",提出様式!M126) ->  | K135: =IF(提出様式!N126="","",提出様式!N126) -> 
B136: 103 | D136: =IF(提出様式!C127="","",提出様式!C127) ->  | F136: =IF(提出様式!I127="","",提出様式!I127) ->  | G136: =IF(提出様式!K127="","",(ROUNDUP(提出様式!K127/5,0))) ->  | H136: =IF(提出様式!H127="","",提出様式!H127) ->  | I136: =IF(提出様式!L127="","",提出様式!L127) ->  | J136: =IF(提出様式!M127="","",提出様式!M127) ->  | K136: =IF(提出様式!N127="","",提出様式!N127) -> 
B137: 104 | D137: =IF(提出様式!C128="","",提出様式!C128) ->  | F137: =IF(提出様式!I128="","",提出様式!I128) ->  | G137: =IF(提出様式!K128="","",(ROUNDUP(提出様式!K128/5,0))) ->  | H137: =IF(提出様式!H128="","",提出様式!H128) ->  | I137: =IF(提出様式!L128="","",提出様式!L128) ->  | J137: =IF(提出様式!M128="","",提出様式!M128) ->  | K137: =IF(提出様式!N128="","",提出様式!N128) -> 
B138: 105 | D138: =IF(提出様式!C129="","",提出様式!C129) ->  | F138: =IF(提出様式!I129="","",提出様式!I129) ->  | G138: =IF(提出様式!K129="","",(ROUNDUP(提出様式!K129/5,0))) ->  | H138: =IF(提出様式!H129="","",提出様式!H129) ->  | I138: =IF(提出様式!L129="","",提出様式!L129) ->  | J138: =IF(提出様式!M129="","",提出様式!M129) ->  | K138: =IF(提出様式!N129="","",提出様式!N129) -> 
B139: 106 | D139: =IF(提出様式!C130="","",提出様式!C130) ->  | F139: =IF(提出様式!I130="","",提出様式!I130) ->  | G139: =IF(提出様式!K130="","",(ROUNDUP(提出様式!K130/5,0))) ->  | H139: =IF(提出様式!H130="","",提出様式!H130) ->  | I139: =IF(提出様式!L130="","",提出様式!L130) ->  | J139: =IF(提出様式!M130="","",提出様式!M130) ->  | K139: =IF(提出様式!N130="","",提出様式!N130) -> 
B140: 107 | D140: =IF(提出様式!C131="","",提出様式!C131) ->  | F140: =IF(提出様式!I131="","",提出様式!I131) ->  | G140: =IF(提出様式!K131="","",(ROUNDUP(提出様式!K131/5,0))) ->  | H140: =IF(提出様式!H131="","",提出様式!H131) ->  | I140: =IF(提出様式!L131="","",提出様式!L131) ->  | J140: =IF(提出様式!M131="","",提出様式!M131) ->  | K140: =IF(提出様式!N131="","",提出様式!N131) -> 
B141: 108 | D141: =IF(提出様式!C132="","",提出様式!C132) ->  | F141: =IF(提出様式!I132="","",提出様式!I132) ->  | G141: =IF(提出様式!K132="","",(ROUNDUP(提出様式!K132/5,0))) ->  | H141: =IF(提出様式!H132="","",提出様式!H132) ->  | I141: =IF(提出様式!L132="","",提出様式!L132) ->  | J141: =IF(提出様式!M132="","",提出様式!M132) ->  | K141: =IF(提出様式!N132="","",提出様式!N132) -> 
B142: 109 | D142: =IF(提出様式!C133="","",提出様式!C133) ->  | F142: =IF(提出様式!I133="","",提出様式!I133) ->  | G142: =IF(提出様式!K133="","",(ROUNDUP(提出様式!K133/5,0))) ->  | H142: =IF(提出様式!H133="","",提出様式!H133) ->  | I142: =IF(提出様式!L133="","",提出様式!L133) ->  | J142: =IF(提出様式!M133="","",提出様式!M133) ->  | K142: =IF(提出様式!N133="","",提出様式!N133) -> 
B143: 110 | D143: =IF(提出様式!C134="","",提出様式!C134) ->  | F143: =IF(提出様式!I134="","",提出様式!I134) ->  | G143: =IF(提出様式!K134="","",(ROUNDUP(提出様式!K134/5,0))) ->  | H143: =IF(提出様式!H134="","",提出様式!H134) ->  | I143: =IF(提出様式!L134="","",提出様式!L134) ->  | J143: =IF(提出様式!M134="","",提出様式!M134) ->  | K143: =IF(提出様式!N134="","",提出様式!N134) -> 
B144: 111 | D144: =IF(提出様式!C135="","",提出様式!C135) ->  | F144: =IF(提出様式!I135="","",提出様式!I135) ->  | G144: =IF(提出様式!K135="","",(ROUNDUP(提出様式!K135/5,0))) ->  | H144: =IF(提出様式!H135="","",提出様式!H135) ->  | I144: =IF(提出様式!L135="","",提出様式!L135) ->  | J144: =IF(提出様式!M135="","",提出様式!M135) ->  | K144: =IF(提出様式!N135="","",提出様式!N135) -> 
B145: 112 | D145: =IF(提出様式!C136="","",提出様式!C136) ->  | F145: =IF(提出様式!I136="","",提出様式!I136) ->  | G145: =IF(提出様式!K136="","",(ROUNDUP(提出様式!K136/5,0))) ->  | H145: =IF(提出様式!H136="","",提出様式!H136) ->  | I145: =IF(提出様式!L136="","",提出様式!L136) ->  | J145: =IF(提出様式!M136="","",提出様式!M136) ->  | K145: =IF(提出様式!N136="","",提出様式!N136) -> 
B146: 113 | D146: =IF(提出様式!C137="","",提出様式!C137) ->  | F146: =IF(提出様式!I137="","",提出様式!I137) ->  | G146: =IF(提出様式!K137="","",(ROUNDUP(提出様式!K137/5,0))) ->  | H146: =IF(提出様式!H137="","",提出様式!H137) ->  | I146: =IF(提出様式!L137="","",提出様式!L137) ->  | J146: =IF(提出様式!M137="","",提出様式!M137) ->  | K146: =IF(提出様式!N137="","",提出様式!N137) -> 
B147: 114 | D147: =IF(提出様式!C138="","",提出様式!C138) ->  | F147: =IF(提出様式!I138="","",提出様式!I138) ->  | G147: =IF(提出様式!K138="","",(ROUNDUP(提出様式!K138/5,0))) ->  | H147: =IF(提出様式!H138="","",提出様式!H138) ->  | I147: =IF(提出様式!L138="","",提出様式!L138) ->  | J147: =IF(提出様式!M138="","",提出様式!M138) ->  | K147: =IF(提出様式!N138="","",提出様式!N138) -> 
B148: 115 | D148: =IF(提出様式!C139="","",提出様式!C139) ->  | F148: =IF(提出様式!I139="","",提出様式!I139) ->  | G148: =IF(提出様式!K139="","",(ROUNDUP(提出様式!K139/5,0))) ->  | H148: =IF(提出様式!H139="","",提出様式!H139) ->  | I148: =IF(提出様式!L139="","",提出様式!L139) ->  | J148: =IF(提出様式!M139="","",提出様式!M139) ->  | K148: =IF(提出様式!N139="","",提出様式!N139) -> 
B149: 116 | D149: =IF(提出様式!C140="","",提出様式!C140) ->  | F149: =IF(提出様式!I140="","",提出様式!I140) ->  | G149: =IF(提出様式!K140="","",(ROUNDUP(提出様式!K140/5,0))) ->  | H149: =IF(提出様式!H140="","",提出様式!H140) ->  | I149: =IF(提出様式!L140="","",提出様式!L140) ->  | J149: =IF(提出様式!M140="","",提出様式!M140) ->  | K149: =IF(提出様式!N140="","",提出様式!N140) -> 
B150: 117 | D150: =IF(提出様式!C141="","",提出様式!C141) ->  | F150: =IF(提出様式!I141="","",提出様式!I141) ->  | G150: =IF(提出様式!K141="","",(ROUNDUP(提出様式!K141/5,0))) ->  | H150: =IF(提出様式!H141="","",提出様式!H141) ->  | I150: =IF(提出様式!L141="","",提出様式!L141) ->  | J150: =IF(提出様式!M141="","",提出様式!M141) ->  | K150: =IF(提出様式!N141="","",提出様式!N141) -> 
B151: 118 | D151: =IF(提出様式!C142="","",提出様式!C142) ->  | F151: =IF(提出様式!I142="","",提出様式!I142) ->  | G151: =IF(提出様式!K142="","",(ROUNDUP(提出様式!K142/5,0))) ->  | H151: =IF(提出様式!H142="","",提出様式!H142) ->  | I151: =IF(提出様式!L142="","",提出様式!L142) ->  | J151: =IF(提出様式!M142="","",提出様式!M142) ->  | K151: =IF(提出様式!N142="","",提出様式!N142) -> 
B152: 119 | D152: =IF(提出様式!C143="","",提出様式!C143) ->  | F152: =IF(提出様式!I143="","",提出様式!I143) ->  | G152: =IF(提出様式!K143="","",(ROUNDUP(提出様式!K143/5,0))) ->  | H152: =IF(提出様式!H143="","",提出様式!H143) ->  | I152: =IF(提出様式!L143="","",提出様式!L143) ->  | J152: =IF(提出様式!M143="","",提出様式!M143) ->  | K152: =IF(提出様式!N143="","",提出様式!N143) -> 
B153: 120 | D153: =IF(提出様式!C144="","",提出様式!C144) ->  | F153: =IF(提出様式!I144="","",提出様式!I144) ->  | G153: =IF(提出様式!K144="","",(ROUNDUP(提出様式!K144/5,0))) ->  | H153: =IF(提出様式!H144="","",提出様式!H144) ->  | I153: =IF(提出様式!L144="","",提出様式!L144) ->  | J153: =IF(提出様式!M144="","",提出様式!M144) ->  | K153: =IF(提出様式!N144="","",提出様式!N144) -> 
B154: 121 | D154: =IF(提出様式!C145="","",提出様式!C145) ->  | F154: =IF(提出様式!I145="","",提出様式!I145) ->  | G154: =IF(提出様式!K145="","",(ROUNDUP(提出様式!K145/5,0))) ->  | H154: =IF(提出様式!H145="","",提出様式!H145) ->  | I154: =IF(提出様式!L145="","",提出様式!L145) ->  | J154: =IF(提出様式!M145="","",提出様式!M145) ->  | K154: =IF(提出様式!N145="","",提出様式!N145) -> 
B155: 122 | D155: =IF(提出様式!C146="","",提出様式!C146) ->  | F155: =IF(提出様式!I146="","",提出様式!I146) ->  | G155: =IF(提出様式!K146="","",(ROUNDUP(提出様式!K146/5,0))) ->  | H155: =IF(提出様式!H146="","",提出様式!H146) ->  | I155: =IF(提出様式!L146="","",提出様式!L146) ->  | J155: =IF(提出様式!M146="","",提出様式!M146) ->  | K155: =IF(提出様式!N146="","",提出様式!N146) -> 
B156: 123 | D156: =IF(提出様式!C147="","",提出様式!C147) ->  | F156: =IF(提出様式!I147="","",提出様式!I147) ->  | G156: =IF(提出様式!K147="","",(ROUNDUP(提出様式!K147/5,0))) ->  | H156: =IF(提出様式!H147="","",提出様式!H147) ->  | I156: =IF(提出様式!L147="","",提出様式!L147) ->  | J156: =IF(提出様式!M147="","",提出様式!M147) ->  | K156: =IF(提出様式!N147="","",提出様式!N147) -> 
B157: 124 | D157: =IF(提出様式!C148="","",提出様式!C148) ->  | F157: =IF(提出様式!I148="","",提出様式!I148) ->  | G157: =IF(提出様式!K148="","",(ROUNDUP(提出様式!K148/5,0))) ->  | H157: =IF(提出様式!H148="","",提出様式!H148) ->  | I157: =IF(提出様式!L148="","",提出様式!L148) ->  | J157: =IF(提出様式!M148="","",提出様式!M148) ->  | K157: =IF(提出様式!N148="","",提出様式!N148) -> 
B158: 125 | D158: =IF(提出様式!C149="","",提出様式!C149) ->  | F158: =IF(提出様式!I149="","",提出様式!I149) ->  | G158: =IF(提出様式!K149="","",(ROUNDUP(提出様式!K149/5,0))) ->  | H158: =IF(提出様式!H149="","",提出様式!H149) ->  | I158: =IF(提出様式!L149="","",提出様式!L149) ->  | J158: =IF(提出様式!M149="","",提出様式!M149) ->  | K158: =IF(提出様式!N149="","",提出様式!N149) -> 
B159: 126 | D159: =IF(提出様式!C150="","",提出様式!C150) ->  | F159: =IF(提出様式!I150="","",提出様式!I150) ->  | G159: =IF(提出様式!K150="","",(ROUNDUP(提出様式!K150/5,0))) ->  | H159: =IF(提出様式!H150="","",提出様式!H150) ->  | I159: =IF(提出様式!L150="","",提出様式!L150) ->  | J159: =IF(提出様式!M150="","",提出様式!M150) ->  | K159: =IF(提出様式!N150="","",提出様式!N150) -> 
B160: 127 | D160: =IF(提出様式!C151="","",提出様式!C151) ->  | F160: =IF(提出様式!I151="","",提出様式!I151) ->  | G160: =IF(提出様式!K151="","",(ROUNDUP(提出様式!K151/5,0))) ->  | H160: =IF(提出様式!H151="","",提出様式!H151) ->  | I160: =IF(提出様式!L151="","",提出様式!L151) ->  | J160: =IF(提出様式!M151="","",提出様式!M151) ->  | K160: =IF(提出様式!N151="","",提出様式!N151) -> 
B161: 128 | D161: =IF(提出様式!C152="","",提出様式!C152) ->  | F161: =IF(提出様式!I152="","",提出様式!I152) ->  | G161: =IF(提出様式!K152="","",(ROUNDUP(提出様式!K152/5,0))) ->  | H161: =IF(提出様式!H152="","",提出様式!H152) ->  | I161: =IF(提出様式!L152="","",提出様式!L152) ->  | J161: =IF(提出様式!M152="","",提出様式!M152) ->  | K161: =IF(提出様式!N152="","",提出様式!N152) -> 
B162: 129 | D162: =IF(提出様式!C153="","",提出様式!C153) ->  | F162: =IF(提出様式!I153="","",提出様式!I153) ->  | G162: =IF(提出様式!K153="","",(ROUNDUP(提出様式!K153/5,0))) ->  | H162: =IF(提出様式!H153="","",提出様式!H153) ->  | I162: =IF(提出様式!L153="","",提出様式!L153) ->  | J162: =IF(提出様式!M153="","",提出様式!M153) ->  | K162: =IF(提出様式!N153="","",提出様式!N153) -> 
B163: 130 | D163: =IF(提出様式!C154="","",提出様式!C154) ->  | F163: =IF(提出様式!I154="","",提出様式!I154) ->  | G163: =IF(提出様式!K154="","",(ROUNDUP(提出様式!K154/5,0))) ->  | H163: =IF(提出様式!H154="","",提出様式!H154) ->  | I163: =IF(提出様式!L154="","",提出様式!L154) ->  | J163: =IF(提出様式!M154="","",提出様式!M154) ->  | K163: =IF(提出様式!N154="","",提出様式!N154) -> 
B164: 131 | D164: =IF(提出様式!C155="","",提出様式!C155) ->  | F164: =IF(提出様式!I155="","",提出様式!I155) ->  | G164: =IF(提出様式!K155="","",(ROUNDUP(提出様式!K155/5,0))) ->  | H164: =IF(提出様式!H155="","",提出様式!H155) ->  | I164: =IF(提出様式!L155="","",提出様式!L155) ->  | J164: =IF(提出様式!M155="","",提出様式!M155) ->  | K164: =IF(提出様式!N155="","",提出様式!N155) -> 
B165: 132 | D165: =IF(提出様式!C156="","",提出様式!C156) ->  | F165: =IF(提出様式!I156="","",提出様式!I156) ->  | G165: =IF(提出様式!K156="","",(ROUNDUP(提出様式!K156/5,0))) ->  | H165: =IF(提出様式!H156="","",提出様式!H156) ->  | I165: =IF(提出様式!L156="","",提出様式!L156) ->  | J165: =IF(提出様式!M156="","",提出様式!M156) ->  | K165: =IF(提出様式!N156="","",提出様式!N156) -> 
B166: 133 | D166: =IF(提出様式!C157="","",提出様式!C157) ->  | F166: =IF(提出様式!I157="","",提出様式!I157) ->  | G166: =IF(提出様式!K157="","",(ROUNDUP(提出様式!K157/5,0))) ->  | H166: =IF(提出様式!H157="","",提出様式!H157) ->  | I166: =IF(提出様式!L157="","",提出様式!L157) ->  | J166: =IF(提出様式!M157="","",提出様式!M157) ->  | K166: =IF(提出様式!N157="","",提出様式!N157) -> 
B167: 134 | D167: =IF(提出様式!C158="","",提出様式!C158) ->  | F167: =IF(提出様式!I158="","",提出様式!I158) ->  | G167: =IF(提出様式!K158="","",(ROUNDUP(提出様式!K158/5,0))) ->  | H167: =IF(提出様式!H158="","",提出様式!H158) ->  | I167: =IF(提出様式!L158="","",提出様式!L158) ->  | J167: =IF(提出様式!M158="","",提出様式!M158) ->  | K167: =IF(提出様式!N158="","",提出様式!N158) -> 
B168: 135 | D168: =IF(提出様式!C159="","",提出様式!C159) ->  | F168: =IF(提出様式!I159="","",提出様式!I159) ->  | G168: =IF(提出様式!K159="","",(ROUNDUP(提出様式!K159/5,0))) ->  | H168: =IF(提出様式!H159="","",提出様式!H159) ->  | I168: =IF(提出様式!L159="","",提出様式!L159) ->  | J168: =IF(提出様式!M159="","",提出様式!M159) ->  | K168: =IF(提出様式!N159="","",提出様式!N159) -> 
B169: 136 | D169: =IF(提出様式!C160="","",提出様式!C160) ->  | F169: =IF(提出様式!I160="","",提出様式!I160) ->  | G169: =IF(提出様式!K160="","",(ROUNDUP(提出様式!K160/5,0))) ->  | H169: =IF(提出様式!H160="","",提出様式!H160) ->  | I169: =IF(提出様式!L160="","",提出様式!L160) ->  | J169: =IF(提出様式!M160="","",提出様式!M160) ->  | K169: =IF(提出様式!N160="","",提出様式!N160) -> 
B170: 137 | D170: =IF(提出様式!C161="","",提出様式!C161) ->  | F170: =IF(提出様式!I161="","",提出様式!I161) ->  | G170: =IF(提出様式!K161="","",(ROUNDUP(提出様式!K161/5,0))) ->  | H170: =IF(提出様式!H161="","",提出様式!H161) ->  | I170: =IF(提出様式!L161="","",提出様式!L161) ->  | J170: =IF(提出様式!M161="","",提出様式!M161) ->  | K170: =IF(提出様式!N161="","",提出様式!N161) -> 
B171: 138 | D171: =IF(提出様式!C162="","",提出様式!C162) ->  | F171: =IF(提出様式!I162="","",提出様式!I162) ->  | G171: =IF(提出様式!K162="","",(ROUNDUP(提出様式!K162/5,0))) ->  | H171: =IF(提出様式!H162="","",提出様式!H162) ->  | I171: =IF(提出様式!L162="","",提出様式!L162) ->  | J171: =IF(提出様式!M162="","",提出様式!M162) ->  | K171: =IF(提出様式!N162="","",提出様式!N162) -> 
B172: 139 | D172: =IF(提出様式!C163="","",提出様式!C163) ->  | F172: =IF(提出様式!I163="","",提出様式!I163) ->  | G172: =IF(提出様式!K163="","",(ROUNDUP(提出様式!K163/5,0))) ->  | H172: =IF(提出様式!H163="","",提出様式!H163) ->  | I172: =IF(提出様式!L163="","",提出様式!L163) ->  | J172: =IF(提出様式!M163="","",提出様式!M163) ->  | K172: =IF(提出様式!N163="","",提出様式!N163) -> 
B173: 140 | D173: =IF(提出様式!C164="","",提出様式!C164) ->  | F173: =IF(提出様式!I164="","",提出様式!I164) ->  | G173: =IF(提出様式!K164="","",(ROUNDUP(提出様式!K164/5,0))) ->  | H173: =IF(提出様式!H164="","",提出様式!H164) ->  | I173: =IF(提出様式!L164="","",提出様式!L164) ->  | J173: =IF(提出様式!M164="","",提出様式!M164) ->  | K173: =IF(提出様式!N164="","",提出様式!N164) -> 
B174: 141 | D174: =IF(提出様式!C165="","",提出様式!C165) ->  | F174: =IF(提出様式!I165="","",提出様式!I165) ->  | G174: =IF(提出様式!K165="","",(ROUNDUP(提出様式!K165/5,0))) ->  | H174: =IF(提出様式!H165="","",提出様式!H165) ->  | I174: =IF(提出様式!L165="","",提出様式!L165) ->  | J174: =IF(提出様式!M165="","",提出様式!M165) ->  | K174: =IF(提出様式!N165="","",提出様式!N165) -> 
B175: 142 | D175: =IF(提出様式!C166="","",提出様式!C166) ->  | F175: =IF(提出様式!I166="","",提出様式!I166) ->  | G175: =IF(提出様式!K166="","",(ROUNDUP(提出様式!K166/5,0))) ->  | H175: =IF(提出様式!H166="","",提出様式!H166) ->  | I175: =IF(提出様式!L166="","",提出様式!L166) ->  | J175: =IF(提出様式!M166="","",提出様式!M166) ->  | K175: =IF(提出様式!N166="","",提出様式!N166) -> 
B176: 143 | D176: =IF(提出様式!C167="","",提出様式!C167) ->  | F176: =IF(提出様式!I167="","",提出様式!I167) ->  | G176: =IF(提出様式!K167="","",(ROUNDUP(提出様式!K167/5,0))) ->  | H176: =IF(提出様式!H167="","",提出様式!H167) ->  | I176: =IF(提出様式!L167="","",提出様式!L167) ->  | J176: =IF(提出様式!M167="","",提出様式!M167) ->  | K176: =IF(提出様式!N167="","",提出様式!N167) -> 
B177: 144 | D177: =IF(提出様式!C168="","",提出様式!C168) ->  | F177: =IF(提出様式!I168="","",提出様式!I168) ->  | G177: =IF(提出様式!K168="","",(ROUNDUP(提出様式!K168/5,0))) ->  | H177: =IF(提出様式!H168="","",提出様式!H168) ->  | I177: =IF(提出様式!L168="","",提出様式!L168) ->  | J177: =IF(提出様式!M168="","",提出様式!M168) ->  | K177: =IF(提出様式!N168="","",提出様式!N168) -> 
B178: 145 | D178: =IF(提出様式!C169="","",提出様式!C169) ->  | F178: =IF(提出様式!I169="","",提出様式!I169) ->  | G178: =IF(提出様式!K169="","",(ROUNDUP(提出様式!K169/5,0))) ->  | H178: =IF(提出様式!H169="","",提出様式!H169) ->  | I178: =IF(提出様式!L169="","",提出様式!L169) ->  | J178: =IF(提出様式!M169="","",提出様式!M169) ->  | K178: =IF(提出様式!N169="","",提出様式!N169) -> 
B179: 146 | D179: =IF(提出様式!C170="","",提出様式!C170) ->  | F179: =IF(提出様式!I170="","",提出様式!I170) ->  | G179: =IF(提出様式!K170="","",(ROUNDUP(提出様式!K170/5,0))) ->  | H179: =IF(提出様式!H170="","",提出様式!H170) ->  | I179: =IF(提出様式!L170="","",提出様式!L170) ->  | J179: =IF(提出様式!M170="","",提出様式!M170) ->  | K179: =IF(提出様式!N170="","",提出様式!N170) -> 
B180: 147 | D180: =IF(提出様式!C171="","",提出様式!C171) ->  | F180: =IF(提出様式!I171="","",提出様式!I171) ->  | G180: =IF(提出様式!K171="","",(ROUNDUP(提出様式!K171/5,0))) ->  | H180: =IF(提出様式!H171="","",提出様式!H171) ->  | I180: =IF(提出様式!L171="","",提出様式!L171) ->  | J180: =IF(提出様式!M171="","",提出様式!M171) ->  | K180: =IF(提出様式!N171="","",提出様式!N171) -> 
B181: 148 | D181: =IF(提出様式!C172="","",提出様式!C172) ->  | F181: =IF(提出様式!I172="","",提出様式!I172) ->  | G181: =IF(提出様式!K172="","",(ROUNDUP(提出様式!K172/5,0))) ->  | H181: =IF(提出様式!H172="","",提出様式!H172) ->  | I181: =IF(提出様式!L172="","",提出様式!L172) ->  | J181: =IF(提出様式!M172="","",提出様式!M172) ->  | K181: =IF(提出様式!N172="","",提出様式!N172) -> 
B182: 149 | D182: =IF(提出様式!C173="","",提出様式!C173) ->  | F182: =IF(提出様式!I173="","",提出様式!I173) ->  | G182: =IF(提出様式!K173="","",(ROUNDUP(提出様式!K173/5,0))) ->  | H182: =IF(提出様式!H173="","",提出様式!H173) ->  | I182: =IF(提出様式!L173="","",提出様式!L173) ->  | J182: =IF(提出様式!M173="","",提出様式!M173) ->  | K182: =IF(提出様式!N173="","",提出様式!N173) -> 
B183: 150 | D183: =IF(提出様式!C174="","",提出様式!C174) ->  | F183: =IF(提出様式!I174="","",提出様式!I174) ->  | G183: =IF(提出様式!K174="","",(ROUNDUP(提出様式!K174/5,0))) ->  | H183: =IF(提出様式!H174="","",提出様式!H174) ->  | I183: =IF(提出様式!L174="","",提出様式!L174) ->  | J183: =IF(提出様式!M174="","",提出様式!M174) ->  | K183: =IF(提出様式!N174="","",提出様式!N174) -> 
B184: 151 | D184: =IF(提出様式!C175="","",提出様式!C175) ->  | F184: =IF(提出様式!I175="","",提出様式!I175) ->  | G184: =IF(提出様式!K175="","",(ROUNDUP(提出様式!K175/5,0))) ->  | H184: =IF(提出様式!H175="","",提出様式!H175) ->  | I184: =IF(提出様式!L175="","",提出様式!L175) ->  | J184: =IF(提出様式!M175="","",提出様式!M175) ->  | K184: =IF(提出様式!N175="","",提出様式!N175) -> 
B185: 152 | D185: =IF(提出様式!C176="","",提出様式!C176) ->  | F185: =IF(提出様式!I176="","",提出様式!I176) ->  | G185: =IF(提出様式!K176="","",(ROUNDUP(提出様式!K176/5,0))) ->  | H185: =IF(提出様式!H176="","",提出様式!H176) ->  | I185: =IF(提出様式!L176="","",提出様式!L176) ->  | J185: =IF(提出様式!M176="","",提出様式!M176) ->  | K185: =IF(提出様式!N176="","",提出様式!N176) -> 
B186: 153 | D186: =IF(提出様式!C177="","",提出様式!C177) ->  | F186: =IF(提出様式!I177="","",提出様式!I177) ->  | G186: =IF(提出様式!K177="","",(ROUNDUP(提出様式!K177/5,0))) ->  | H186: =IF(提出様式!H177="","",提出様式!H177) ->  | I186: =IF(提出様式!L177="","",提出様式!L177) ->  | J186: =IF(提出様式!M177="","",提出様式!M177) ->  | K186: =IF(提出様式!N177="","",提出様式!N177) -> 
B187: 154 | D187: =IF(提出様式!C178="","",提出様式!C178) ->  | F187: =IF(提出様式!I178="","",提出様式!I178) ->  | G187: =IF(提出様式!K178="","",(ROUNDUP(提出様式!K178/5,0))) ->  | H187: =IF(提出様式!H178="","",提出様式!H178) ->  | I187: =IF(提出様式!L178="","",提出様式!L178) ->  | J187: =IF(提出様式!M178="","",提出様式!M178) ->  | K187: =IF(提出様式!N178="","",提出様式!N178) -> 
B188: 155 | D188: =IF(提出様式!C179="","",提出様式!C179) ->  | F188: =IF(提出様式!I179="","",提出様式!I179) ->  | G188: =IF(提出様式!K179="","",(ROUNDUP(提出様式!K179/5,0))) ->  | H188: =IF(提出様式!H179="","",提出様式!H179) ->  | I188: =IF(提出様式!L179="","",提出様式!L179) ->  | J188: =IF(提出様式!M179="","",提出様式!M179) ->  | K188: =IF(提出様式!N179="","",提出様式!N179) -> 
B189: 156 | D189: =IF(提出様式!C180="","",提出様式!C180) ->  | F189: =IF(提出様式!I180="","",提出様式!I180) ->  | G189: =IF(提出様式!K180="","",(ROUNDUP(提出様式!K180/5,0))) ->  | H189: =IF(提出様式!H180="","",提出様式!H180) ->  | I189: =IF(提出様式!L180="","",提出様式!L180) ->  | J189: =IF(提出様式!M180="","",提出様式!M180) ->  | K189: =IF(提出様式!N180="","",提出様式!N180) -> 
B190: 157 | D190: =IF(提出様式!C181="","",提出様式!C181) ->  | F190: =IF(提出様式!I181="","",提出様式!I181) ->  | G190: =IF(提出様式!K181="","",(ROUNDUP(提出様式!K181/5,0))) ->  | H190: =IF(提出様式!H181="","",提出様式!H181) ->  | I190: =IF(提出様式!L181="","",提出様式!L181) ->  | J190: =IF(提出様式!M181="","",提出様式!M181) ->  | K190: =IF(提出様式!N181="","",提出様式!N181) -> 
B191: 158 | D191: =IF(提出様式!C182="","",提出様式!C182) ->  | F191: =IF(提出様式!I182="","",提出様式!I182) ->  | G191: =IF(提出様式!K182="","",(ROUNDUP(提出様式!K182/5,0))) ->  | H191: =IF(提出様式!H182="","",提出様式!H182) ->  | I191: =IF(提出様式!L182="","",提出様式!L182) ->  | J191: =IF(提出様式!M182="","",提出様式!M182) ->  | K191: =IF(提出様式!N182="","",提出様式!N182) -> 
B192: 159 | D192: =IF(提出様式!C183="","",提出様式!C183) ->  | F192: =IF(提出様式!I183="","",提出様式!I183) ->  | G192: =IF(提出様式!K183="","",(ROUNDUP(提出様式!K183/5,0))) ->  | H192: =IF(提出様式!H183="","",提出様式!H183) ->  | I192: =IF(提出様式!L183="","",提出様式!L183) ->  | J192: =IF(提出様式!M183="","",提出様式!M183) ->  | K192: =IF(提出様式!N183="","",提出様式!N183) -> 
B193: 160 | D193: =IF(提出様式!C184="","",提出様式!C184) ->  | F193: =IF(提出様式!I184="","",提出様式!I184) ->  | G193: =IF(提出様式!K184="","",(ROUNDUP(提出様式!K184/5,0))) ->  | H193: =IF(提出様式!H184="","",提出様式!H184) ->  | I193: =IF(提出様式!L184="","",提出様式!L184) ->  | J193: =IF(提出様式!M184="","",提出様式!M184) ->  | K193: =IF(提出様式!N184="","",提出様式!N184) -> 
B194: 161 | D194: =IF(提出様式!C185="","",提出様式!C185) ->  | F194: =IF(提出様式!I185="","",提出様式!I185) ->  | G194: =IF(提出様式!K185="","",(ROUNDUP(提出様式!K185/5,0))) ->  | H194: =IF(提出様式!H185="","",提出様式!H185) ->  | I194: =IF(提出様式!L185="","",提出様式!L185) ->  | J194: =IF(提出様式!M185="","",提出様式!M185) ->  | K194: =IF(提出様式!N185="","",提出様式!N185) -> 
B195: 162 | D195: =IF(提出様式!C186="","",提出様式!C186) ->  | F195: =IF(提出様式!I186="","",提出様式!I186) ->  | G195: =IF(提出様式!K186="","",(ROUNDUP(提出様式!K186/5,0))) ->  | H195: =IF(提出様式!H186="","",提出様式!H186) ->  | I195: =IF(提出様式!L186="","",提出様式!L186) ->  | J195: =IF(提出様式!M186="","",提出様式!M186) ->  | K195: =IF(提出様式!N186="","",提出様式!N186) -> 
B196: 163 | D196: =IF(提出様式!C187="","",提出様式!C187) ->  | F196: =IF(提出様式!I187="","",提出様式!I187) ->  | G196: =IF(提出様式!K187="","",(ROUNDUP(提出様式!K187/5,0))) ->  | H196: =IF(提出様式!H187="","",提出様式!H187) ->  | I196: =IF(提出様式!L187="","",提出様式!L187) ->  | J196: =IF(提出様式!M187="","",提出様式!M187) ->  | K196: =IF(提出様式!N187="","",提出様式!N187) -> 
B197: 164 | D197: =IF(提出様式!C188="","",提出様式!C188) ->  | F197: =IF(提出様式!I188="","",提出様式!I188) ->  | G197: =IF(提出様式!K188="","",(ROUNDUP(提出様式!K188/5,0))) ->  | H197: =IF(提出様式!H188="","",提出様式!H188) ->  | I197: =IF(提出様式!L188="","",提出様式!L188) ->  | J197: =IF(提出様式!M188="","",提出様式!M188) ->  | K197: =IF(提出様式!N188="","",提出様式!N188) -> 
B198: 165 | D198: =IF(提出様式!C189="","",提出様式!C189) ->  | F198: =IF(提出様式!I189="","",提出様式!I189) ->  | G198: =IF(提出様式!K189="","",(ROUNDUP(提出様式!K189/5,0))) ->  | H198: =IF(提出様式!H189="","",提出様式!H189) ->  | I198: =IF(提出様式!L189="","",提出様式!L189) ->  | J198: =IF(提出様式!M189="","",提出様式!M189) ->  | K198: =IF(提出様式!N189="","",提出様式!N189) -> 
B199: 166 | D199: =IF(提出様式!C190="","",提出様式!C190) ->  | F199: =IF(提出様式!I190="","",提出様式!I190) ->  | G199: =IF(提出様式!K190="","",(ROUNDUP(提出様式!K190/5,0))) ->  | H199: =IF(提出様式!H190="","",提出様式!H190) ->  | I199: =IF(提出様式!L190="","",提出様式!L190) ->  | J199: =IF(提出様式!M190="","",提出様式!M190) ->  | K199: =IF(提出様式!N190="","",提出様式!N190) -> 
B200: 167 | D200: =IF(提出様式!C191="","",提出様式!C191) ->  | F200: =IF(提出様式!I191="","",提出様式!I191) ->  | G200: =IF(提出様式!K191="","",(ROUNDUP(提出様式!K191/5,0))) ->  | H200: =IF(提出様式!H191="","",提出様式!H191) ->  | I200: =IF(提出様式!L191="","",提出様式!L191) ->  | J200: =IF(提出様式!M191="","",提出様式!M191) ->  | K200: =IF(提出様式!N191="","",提出様式!N191) -> 
B201: 168 | D201: =IF(提出様式!C192="","",提出様式!C192) ->  | F201: =IF(提出様式!I192="","",提出様式!I192) ->  | G201: =IF(提出様式!K192="","",(ROUNDUP(提出様式!K192/5,0))) ->  | H201: =IF(提出様式!H192="","",提出様式!H192) ->  | I201: =IF(提出様式!L192="","",提出様式!L192) ->  | J201: =IF(提出様式!M192="","",提出様式!M192) ->  | K201: =IF(提出様式!N192="","",提出様式!N192) -> 
B202: 169 | D202: =IF(提出様式!C193="","",提出様式!C193) ->  | F202: =IF(提出様式!I193="","",提出様式!I193) ->  | G202: =IF(提出様式!K193="","",(ROUNDUP(提出様式!K193/5,0))) ->  | H202: =IF(提出様式!H193="","",提出様式!H193) ->  | I202: =IF(提出様式!L193="","",提出様式!L193) ->  | J202: =IF(提出様式!M193="","",提出様式!M193) ->  | K202: =IF(提出様式!N193="","",提出様式!N193) -> 
B203: 170 | D203: =IF(提出様式!C194="","",提出様式!C194) ->  | F203: =IF(提出様式!I194="","",提出様式!I194) ->  | G203: =IF(提出様式!K194="","",(ROUNDUP(提出様式!K194/5,0))) ->  | H203: =IF(提出様式!H194="","",提出様式!H194) ->  | I203: =IF(提出様式!L194="","",提出様式!L194) ->  | J203: =IF(提出様式!M194="","",提出様式!M194) ->  | K203: =IF(提出様式!N194="","",提出様式!N194) -> 
B204: 171 | D204: =IF(提出様式!C195="","",提出様式!C195) ->  | F204: =IF(提出様式!I195="","",提出様式!I195) ->  | G204: =IF(提出様式!K195="","",(ROUNDUP(提出様式!K195/5,0))) ->  | H204: =IF(提出様式!H195="","",提出様式!H195) ->  | I204: =IF(提出様式!L195="","",提出様式!L195) ->  | J204: =IF(提出様式!M195="","",提出様式!M195) ->  | K204: =IF(提出様式!N195="","",提出様式!N195) -> 
B205: 172 | D205: =IF(提出様式!C196="","",提出様式!C196) ->  | F205: =IF(提出様式!I196="","",提出様式!I196) ->  | G205: =IF(提出様式!K196="","",(ROUNDUP(提出様式!K196/5,0))) ->  | H205: =IF(提出様式!H196="","",提出様式!H196) ->  | I205: =IF(提出様式!L196="","",提出様式!L196) ->  | J205: =IF(提出様式!M196="","",提出様式!M196) ->  | K205: =IF(提出様式!N196="","",提出様式!N196) -> 
B206: 173 | D206: =IF(提出様式!C197="","",提出様式!C197) ->  | F206: =IF(提出様式!I197="","",提出様式!I197) ->  | G206: =IF(提出様式!K197="","",(ROUNDUP(提出様式!K197/5,0))) ->  | H206: =IF(提出様式!H197="","",提出様式!H197) ->  | I206: =IF(提出様式!L197="","",提出様式!L197) ->  | J206: =IF(提出様式!M197="","",提出様式!M197) ->  | K206: =IF(提出様式!N197="","",提出様式!N197) -> 
B207: 174 | D207: =IF(提出様式!C198="","",提出様式!C198) ->  | F207: =IF(提出様式!I198="","",提出様式!I198) ->  | G207: =IF(提出様式!K198="","",(ROUNDUP(提出様式!K198/5,0))) ->  | H207: =IF(提出様式!H198="","",提出様式!H198) ->  | I207: =IF(提出様式!L198="","",提出様式!L198) ->  | J207: =IF(提出様式!M198="","",提出様式!M198) ->  | K207: =IF(提出様式!N198="","",提出様式!N198) -> 
B208: 175 | D208: =IF(提出様式!C199="","",提出様式!C199) ->  | F208: =IF(提出様式!I199="","",提出様式!I199) ->  | G208: =IF(提出様式!K199="","",(ROUNDUP(提出様式!K199/5,0))) ->  | H208: =IF(提出様式!H199="","",提出様式!H199) ->  | I208: =IF(提出様式!L199="","",提出様式!L199) ->  | J208: =IF(提出様式!M199="","",提出様式!M199) ->  | K208: =IF(提出様式!N199="","",提出様式!N199) -> 
B209: 176 | D209: =IF(提出様式!C200="","",提出様式!C200) ->  | F209: =IF(提出様式!I200="","",提出様式!I200) ->  | G209: =IF(提出様式!K200="","",(ROUNDUP(提出様式!K200/5,0))) ->  | H209: =IF(提出様式!H200="","",提出様式!H200) ->  | I209: =IF(提出様式!L200="","",提出様式!L200) ->  | J209: =IF(提出様式!M200="","",提出様式!M200) ->  | K209: =IF(提出様式!N200="","",提出様式!N200) -> 
B210: 177 | D210: =IF(提出様式!C201="","",提出様式!C201) ->  | F210: =IF(提出様式!I201="","",提出様式!I201) ->  | G210: =IF(提出様式!K201="","",(ROUNDUP(提出様式!K201/5,0))) ->  | H210: =IF(提出様式!H201="","",提出様式!H201) ->  | I210: =IF(提出様式!L201="","",提出様式!L201) ->  | J210: =IF(提出様式!M201="","",提出様式!M201) ->  | K210: =IF(提出様式!N201="","",提出様式!N201) -> 
B211: 178 | D211: =IF(提出様式!C202="","",提出様式!C202) ->  | F211: =IF(提出様式!I202="","",提出様式!I202) ->  | G211: =IF(提出様式!K202="","",(ROUNDUP(提出様式!K202/5,0))) ->  | H211: =IF(提出様式!H202="","",提出様式!H202) ->  | I211: =IF(提出様式!L202="","",提出様式!L202) ->  | J211: =IF(提出様式!M202="","",提出様式!M202) ->  | K211: =IF(提出様式!N202="","",提出様式!N202) -> 
B212: 179 | D212: =IF(提出様式!C203="","",提出様式!C203) ->  | F212: =IF(提出様式!I203="","",提出様式!I203) ->  | G212: =IF(提出様式!K203="","",(ROUNDUP(提出様式!K203/5,0))) ->  | H212: =IF(提出様式!H203="","",提出様式!H203) ->  | I212: =IF(提出様式!L203="","",提出様式!L203) ->  | J212: =IF(提出様式!M203="","",提出様式!M203) ->  | K212: =IF(提出様式!N203="","",提出様式!N203) -> 
B213: 180 | D213: =IF(提出様式!C204="","",提出様式!C204) ->  | F213: =IF(提出様式!I204="","",提出様式!I204) ->  | G213: =IF(提出様式!K204="","",(ROUNDUP(提出様式!K204/5,0))) ->  | H213: =IF(提出様式!H204="","",提出様式!H204) ->  | I213: =IF(提出様式!L204="","",提出様式!L204) ->  | J213: =IF(提出様式!M204="","",提出様式!M204) ->  | K213: =IF(提出様式!N204="","",提出様式!N204) -> 
... 120 more rows

Sheet 合計計算表 (hidden)
C3: 民間企業の活動による二酸化炭素吸収・固定量の「見える化」実証事業 | H3: 御 社 名 | J3: ○○株式会社
H4: プロジェクト名称
H5: 担 当 者 名
H6: 連 絡 先
C7: 森林による二酸化炭素吸収量詳細計算書
H8: 作成年月日
C9: 合計表
B11: 森林整備の種類等の区分 | C11: 樹種名 | D11: 林分数 | E11: 総面積 ha | F11: 総材積量 m3 | G11: ha当り材積量 m3/ha | H11: 年間総成長量 m3/年 | I11: ha当り年間成長量 m3/ha・年 | J11: 年間推定CO2吸収量 t－CO2/年 | K11: ha年間推定CO2吸収量 t-CO2/ha年
B13: その他登録外 | C13: スギ
C14: ヒノキ
C15: カラマツ
C16: その他樹種
C17: 計
B18: 合 計 | C18: スギ
C19: ヒノキ
C20: カラマツ
C21: その他樹種
C22: 計

Sheet 計算明細表 (hidden)
E1: 民間企業の活動による二酸化炭素吸収・固定量の「見える化」実証事業
L3: 作成年月日
F5: 森林による二酸化炭素吸収量計算書 明細表
B7: 番号 | C7: 森林整備の種類等の区分 | D7: 森林の所在県 | E7: 林班等所在地区分 | F7: 樹種名 | G7: 齢級 | H7: 面積 ha | I7: 森林調査結果 | L7: 材積量 m3 | M7: 収量比数 | N7: 年成長量 m3/年 | O7: 年間CO２吸収量 t-CO2/年
I8: ha当り立木本数 | J8: 樹高 m | K8: 平均直径 cm

Sheet 密度管理 (hidden)
A1: 番号 | B1: 変数 | C1: ｋ１ | D1: ｋ２ | E1: ｋ３ | F1: ｋ４ | G1: H:実測上層樹高 | H1: N:ha本数 | I1: 計算結果 | J1: D:平均実測直径 | K1: 補正材積
A2: 1 | B2: V:ha材積 | C2: 0.057326 | D2: -1.36938 | E2: 6475.4 | F2: -2.902205 | G2: 24.41142874 | H2: 606.25 | I2: =(C2*G2^D2+E2*G2^F2/H2)^-1 -> 579.7116265 | J2: 37.59046751 | K2: =I2*(J2/I6)^2 -> 816.5630259
B3: HF:林分形状高 | C3: 0.723894 | D3: 0.410411 | E3: 0.15519 | G3: =G2 -> 24.41142874 | H3: =H2 -> 606.25 | I3: =C3+D3*G3+E3*SQRT(H3)*G3/100 -> 11.67540058
B4: G:ha当たり断面積 | I4: =I2/I3 -> 49.65239717
B5: dg^：断面積平均直径 | H5: =H2 -> 606.25 | I5: =200*SQRT(I4/(PI()*H5)) -> 32.29232345
B6: d^：平均胸高直径 | C6: -0.113656 | D6: 0.995045 | E6: -0.057512 | G6: =G2 -> 24.41142874 | H6: =H2 -> 606.25 | I6: =C6+D6*I5+E6*SQRT(H6)*G6/100 -> 31.67297637
B7: Rｙ：収量比数 | G7: =G2 -> 24.41142874 | H7: =H2 -> 606.25 | I7: =I2/I8 -> 0.6213371665 | K7: =K2/I8 -> 0.8751954138
B8: Vrf：最多密度材積 | C8: =C2 -> 0.057326 | D8: =D2 -> -1.36938 | E8: =E2 -> 6475.4 | F8: =F2 -> -2.902205 | G8: =G2 -> 24.41142874 | I8: =(C8*G8^D8+E8*G8^F8/I9)^-1 -> 933.0065184
B9: Nrf:最多密度本数 | C9: 5.33888 | D9: -1.512831 | G9: =G2 -> 24.41142874 | I9: =10^(C9+D9*LOG(G9)) -> 1736.544809
A10: 2 | B10: V:ha材積 | C10: 0.060047 | D10: -1.352337 | E10: 3743.3 | F10: -2.824828 | G10: 22 | H10: 900 | I10: =(C10*G10^D10+E10*G10^F10/H10)^-1 -> 629.0171701 | J10: 28 | K10: =I10*(J10/I14)^2 -> 611.3231773
B11: HF:林分形状高 | C11: 0.667196 | D11: 0.387485 | E11: 0.189979 | G11: =G10 -> 22 | H11: =H10 -> 900 | I11: =C11+D11*G11+E11*SQRT(H11)*G11/100 -> 10.4457274
B12: G:ha当たり断面積 | I12: =I10/I11 -> 60.2176513
B13: dg^：断面積平均直径 | H13: =H10 -> 900 | I13: =200*SQRT(I12/(PI()*H13)) -> 29.18742022
B14: d^：平均胸高直径 | C14: -0.382224 | D14: 0.986197 | G14: =G10 -> 22 | H14: =H10 -> 900 | I14: =C14+D14*I13+E14*SQRT(H14)*G14/100 -> 28.40232226
B15: Rｙ：収量比数 | G15: =G10 -> 22 | H15: =H10 -> 900 | I15: =I10/I16 -> 0.7608915391 | K15: =K10/I16 -> 0.7394879748
B16: Vrf：最多密度材積 | C16: =C10 -> 0.060047 | D16: =D10 -> -1.352337 | E16: =E10 -> 3743.3 | F16: =F10 -> -2.824828 | G16: =G10 -> 22 | I16: =(C16*G16^D16+E16*G16^F16/I17)^-1 -> 826.6844061
B17: Nrf:最多密度本数 | C17: 5.29374 | D17: -1.47249 | G17: =G10 -> 22 | I17: =10^(C17+D17*LOG(G17)) -> 2075.085648
A18: 3 | B18: V:ha材積 | C18: 0.07156 | D18: -1.373859 | E18: 5062 | F18: -2.869785 | G18: 17 | H18: 1600 | I18: =(C18*G18^D18+E18*G18^F18/H18)^-1 -> 418.2725657 | J18: 24 | K18: =I18*(J18/I22)^2 -> 674.6100149
B19: HF:林分形状高 | C19: 0.650787 | D19: 0.417356 | E19: 0.138768 | G19: =G18 -> 17 | H19: =H18 -> 1600 | I19: =C19+D19*G19+E19*SQRT(H19)*G19/100 -> 8.6894614
B20: G:ha当たり断面積 | I20: =I18/I19 -> 48.13561468
B21: dg^：断面積平均直径 | H21: =H18 -> 1600 | I21: =200*SQRT(I20/(PI()*H21)) -> 19.57169003
B22: d^：平均胸高直径 | C22: 0.193943 | D22: 0.987164 | E22: -0.090657 | G22: =G18 -> 17 | H22: =H18 -> 1600 | I22: =C22+D22*I21+E22*SQRT(H22)*G22/100 -> 18.89794322
B23: Rｙ：収量比数 | G23: =G18 -> 17 | H23: =H18 -> 1600 | I23: =I18/I24 -> 0.7942837697 | K23: =K18/I24 -> 1.281058883
B24: Vrf：最多密度材積 | C24: =C18 -> 0.07156 | D24: =D18 -> -1.373859 | E24: =E18 -> 5062 | F24: =F18 -> -2.869785 | G24: =G18 -> 17 | I24: =(C24*G24^D24+E24*G24^F24/I25)^-1 -> 526.6034403
B25: Nrf:最多密度本数 | C25: 5.370947 | D25: -1.495926 | G25: =G18 -> 17 | I25: =10^(C25+D25*LOG(G25)) -> 3390.677363
A26: 4 | B26: V:ha材積 | C26: 0.082249 | D26: -1.372921 | E26: 3681.6 | F26: -2.867826 | G26: 24.41142874 | H26: 606.25 | I26: =(C26*G26^D26+E26*G26^F26/H26)^-1 -> 602.3087949 | J26: 37.59046751 | K26: =I26*(J26/I30)^2 -> 810.4351441
B27: HF:林分形状高 | C27: 0.808545 | D27: 0.402345 | E27: 0.140882 | G27: =G26 -> 24.41142874 | H27: =H26 -> 606.25 | I27: =C27+D27*G27+E27*SQRT(H27)*G27/100 -> 11.47714908
B28: G:ha当たり断面積 | I28: =I26/I27 -> 52.47895542
B29: dg^：断面積平均直径 | H29: =H26 -> 606.25 | I29: =200*SQRT(I28/(PI()*H29)) -> 33.19875325
B30: d^：平均胸高直径 | C30: -0.000379 | D30: 0.981298 | E30: -0.028497 | G30: =G26 -> 24.41142874 | H30: =H26 -> 606.25 | I30: =C30+D30*I29+E30*SQRT(H30)*G30/100 -> 32.40620661
B31: Rｙ：収量比数 | G31: =G26 -> 24.41142874 | H31: =H26 -> 606.25 | I31: =I26/I32 -> 0.7285154377 | K31: =K26/I32 -> 0.9802521875
B32: Vrf：最多密度材積 | C32: =C26 -> 0.082249 | D32: =D26 -> -1.372921 | E32: =E26 -> 3681.6 | F32: =F26 -> -2.867826 | G32: =G26 -> 24.41142874 | I32: =(C32*G32^D32+E32*G32^F32/I33)^-1 -> 826.7618827
B33: Nrf:最多密度本数 | C33: 5.391307 | D33: -1.494905 | G33: =G26 -> 24.41142874 | I33: =10^(C33+D33*LOG(G33)) -> 2074.85136
A34: 5 | B34: V:ha材積 | C34: 0.061977 | D34: -1.351766 | E34: 4725.2 | F34: -2.823636 | G34: 24.45 | H34: 800 | I34: =(C34*G34^D34+E34*G34^F34/H34)^-1 -> 652.0983822 | J34: 24.61875 | K34: =I34*(J34/I38)^2 -> 455.1343547
B35: HF:林分形状高 | C35: 1.23249 | D35: 0.35958 | E35: 0.1473 | G35: =G34 -> 24.45 | H35: =H34 -> 800 | I35: =C35+D35*G35+E35*SQRT(H35)*G35/100 -> 11.04287479
B36: G:ha当たり断面積 | I36: =I34/I35 -> 59.0515056
B37: dg^：断面積平均直径 | H37: =H34 -> 800 | I37: =200*SQRT(I36/(PI()*H37)) -> 30.65671054
B38: d^：平均胸高直径 | C38: -0.32087 | D38: 0.9824 | E38: -0.04745 | G38: =G34 -> 24.45 | H38: =H34 -> 800 | I38: =C38+D38*I37+E38*SQRT(H38)*G38/100 -> 29.46814176
B39: Rｙ：収量比数 | G39: =G34 -> 24.45 | H39: =H34 -> 800 | I39: =I34/I40 -> 0.7309065204 | K39: =K34/I40 -> 0.5101387713
B40: Vrf：最多密度材積 | C40: =C34 -> 0.061977 | D40: =D34 -> -1.351766 | E40: =E34 -> 4725.2 | F40: =F34 -> -2.823636 | G40: =G34 -> 24.45 | I40: =(C40*G40^D40+E40*G40^F40/I41)^-1 -> 892.1775412
B41: Nrf:最多密度本数 | C41: 5.32435 | D41: -1.47187 | G41: =G34 -> 24.45 | I41: =10^(C41+D41*LOG(G41)) -> 1909.782851
A42: 6 | B42: V:ha材積 | C42: 0.074343 | D42: -1.388481 | E42: 5065 | F42: -2.900328 | G42: 20.4 | H42: 1225 | I42: =(C42*G42^D42+E42*G42^F42/H42)^-1 -> 559.5415541 | J42: 24.73673469 | K42: =I42*(J42/I46)^2 -> 610.9258223
B43: HF:林分形状高 | C43: 1.273477 | D43: 0.36758 | E43: 0.140427 | G43: =G42 -> 20.4 | H43: =H42 -> 1225 | I43: =C43+D43*G43+E43*SQRT(H43)*G43/100 -> 9.77475778
B44: G:ha当たり断面積 | I44: =I42/I43 -> 57.24352119
B45: dg^：断面積平均直径 | H45: =H42 -> 1225 | I45: =200*SQRT(I44/(PI()*H45)) -> 24.39215579
B46: d^：平均胸高直径 | C46: -0.15213 | D46: 0.985016 | E46: -0.028142 | G46: =G42 -> 20.4 | H46: =H42 -> 1225 | I46: =C46+D46*I45+E46*SQRT(H46)*G46/100 -> 23.67359985
B47: Rｙ：収量比数 | G47: =G42 -> 20.4 | H47: =H42 -> 1225 | I47: =I42/I48 -> 0.8105102213 | K47: =K42/I48 -> 0.8849416452
B48: Vrf：最多密度材積 | C48: =C42 -> 0.074343 | D48: =D42 -> -1.388481 | E48: =E42 -> 5065 | F48: =F42 -> -2.900328 | G48: =G42 -> 20.4 | I48: =(C48*G48^D48+E48*G48^F48/I49)^-1 -> 690.3571842
B49: Nrf:最多密度本数 | C49: 5.38221 | D49: -1.51185 | G49: =G42 -> 20.4 | I49: =10^(C49+D49*LOG(G49)) -> 2524.908424
A50: 7 | B50: V:ha材積 | C50: 0.068509 | D50: -1.347464 | E50: 2658.2 | F50: -2.814651 | G50: 24.41142874 | H50: 606.25 | I50: =(C50*G50^D50+E50*G50^F50/H50)^-1 -> 680.4260261 | J50: 37.59046751 | K50: =I50*(J50/I54)^2 -> 759.9184428
B51: HF:林分形状高 | C51: 0.791213 | D51: 0.353895 | E51: 0.244012 | G51: =G50 -> 24.41142874 | H51: =H50 -> 606.25 | I51: =C51+D51*G51+E51*SQRT(H51)*G51/100 -> 10.89695831
B52: G:ha当たり断面積 | I52: =I50/I51 -> 62.44183069
B53: dg^：断面積平均直径 | H53: =H50 -> 606.25 | I53: =200*SQRT(I52/(PI()*H53)) -> 36.21320784
B54: d^：平均胸高直径 | C54: -0.04894 | D54: 0.98937 | E54: -0.034814 | G54: =G50 -> 24.41142874 | H54: =H50 -> 606.25 | I54: =C54+D54*I53+E54*SQRT(H54)*G54/100 -> 35.57006781
B55: Rｙ：収量比数 | G55: =G50 -> 24.41142874 | H55: =H50 -> 606.25 | I55: =I50/I56 -> 0.7492594619 | K55: =K50/I56 -> 0.8367935113
B56: Vrf：最多密度材積 | C56: =C50 -> 0.068509 | D56: =D50 -> -1.347464 | E56: =E50 -> 2658.2 | F56: =F50 -> -2.814651 | G56: =G50 -> 24.41142874 | I56: =(C56*G56^D56+E56*G56^F56/I57)^-1 -> 908.1313759
B57: Nrf:最多密度本数 | C57: 5.3083 | D57: -1.4672 | G57: =G50 -> 24.41142874 | I57: =10^(C57+D57*LOG(G57)) -> 1872.506178
A58: 8 | B58: V:ha材積 | C58: 0.035147 | D58: -1.080773 | E58: 4711.2 | F58: -2.922894 | G58: 4 | H58: 2000 | I58: =(C58*G58^D58+E58*G58^F58/H58)^-1 -> 20.48574346 | J58: 0 | K58: =I58*(J58/I62)^2 -> 0
B59: HF:林分形状高 | C59: -0.052817 | D59: 0.472577 | E59: 0.123506 | G59: =G58 -> 4 | H59: =H58 -> 2000 | I59: =C59+D59*G59+E59*SQRT(H59)*G59/100 -> 2.058425249
B60: G:ha当たり断面積 | I60: =I58/I59 -> 9.952143499
B61: dg^：断面積平均直径 | H61: =H58 -> 2000 | I61: =200*SQRT(I60/(PI()*H61)) -> 7.95973073
B62: d^：平均胸高直径 | C62: -0.115479 | D62: 0.984423 | G62: =G58 -> 4 | H62: =H58 -> 2000 | I62: =C62+D62*I61+E62*SQRT(H62)*G62/100 -> 7.720263004
B63: Rｙ：収量比数 | G63: =G58 -> 4 | H63: =H58 -> 2000 | I63: =I58/I64 -> 0.2003344578 | K63: =K58/I64 -> 0
B64: Vrf：最多密度材積 | C64: =C58 -> 0.035147 | D64: =D58 -> -1.080773 | E64: =E58 -> 4711.2 | F64: =F58 -> -2.922894 | G64: =G58 -> 4 | I64: =(C64*G64^D64+E64*G64^F64/I65)^-1 -> 102.2577129
B65: Nrf:最多密度本数 | C65: 5.7384 | D65: -1.842121 | G65: =G58 -> 4 | I65: =10^(C65+D65*LOG(G65)) -> 42592.4524
A66: 9 | B66: V:ha材積 | C66: 0.0390819 | D66: -1.147348 | E66: 8524.5 | F66: -3.102942 | G66: 17.225 | H66: 2066.666667 | I66: =(C66*G66^D66+E66*G66^F66/H66)^-1 -> 477.6090438 | J66: 18.66774194 | K66: =I66*(J66/I70)^2 -> 553.9234948
B67: HF:林分形状高 | C67: -0.089118 | D67: 0.463318 | E67: 0.178773 | G67: =G66 -> 17.225 | H67: =H66 -> 2066.666667 | I67: =C67+D67*G67+E67*SQRT(H67)*G67/100 -> 9.291432495
B68: G:ha当たり断面積 | I68: =I66/I67 -> 51.40316566
B69: dg^：断面積平均直径 | H69: =H66 -> 2066.666667 | I69: =200*SQRT(I68/(PI()*H69)) -> 17.79568767
B70: d^：平均胸高直径 | C70: -0.029001 | D70: 0.99178 | E70: -0.036553 | G70: =G66 -> 17.225 | H70: =H66 -> 2066.666667 | I70: =C70+D70*I69+E70*SQRT(H70)*G70/100 -> 17.33417458
B71: Rｙ：収量比数 | G71: =G66 -> 17.225 | H71: =H66 -> 2066.666667 | I71: =I66/I72 -> 0.9306313959 | K71: =K66/I72 -> 1.079331729
B72: Vrf：最多密度材積 | C72: =C66 -> 0.0390819 | D72: =D66 -> -1.147348 | E72: =E66 -> 8524.5 | F72: =F66 -> -3.102942 | G72: =G66 -> 17.225 | I72: =(C72*G72^D72+E72*G72^F72/I73)^-1 -> 513.2096831
B73: Nrf:最多密度本数 | C73: 5.852583 | D73: -1.955594 | G73: =G66 -> 17.225 | I73: =10^(C73+D73*LOG(G73)) -> 2723.688428
A74: 10 | B74: V:ha材積 | C74: 0.053887 | D74: -1.18794 | E74: 7663.1 | F74: -3.20151 | G74: 12.74705882 | H74: 2366.666667 | I74: =(C74*G74^D74+E74*G74^F74/H74)^-1 -> 281.2025914 | J74: 14.87464789 | K74: =I74*(J74/I78)^2 -> 295.3518163
B75: HF:林分形状高 | C75: 0.320738 | D75: 0.437334 | E75: 0.153257 | G75: =G74 -> 12.74705882 | H75: =H74 -> 2366.666667 | I75: =C75+D75*G75+E75*SQRT(H75)*G75/100 -> 6.845843656
B76: G:ha当たり断面積 | I76: =I74/I75 -> 41.07639694
B77: dg^：断面積平均直径 | H77: =H74 -> 2366.666667 | I77: =200*SQRT(I76/(PI()*H77)) -> 14.86560823
B78: d^：平均胸高直径 | C78: -0.241667 | D78: 0.992603 | G78: =G74 -> 12.74705882 | H78: =H74 -> 2366.666667 | I78: =C78+D78*I77+E78*SQRT(H78)*G78/100 -> 14.51398033
B79: Rｙ：収量比数 | G79: =G74 -> 12.74705882 | H79: =H74 -> 2366.666667 | I79: =I74/I80 -> 0.8444951051 | K79: =K74/I80 -> 0.8869874277
B80: Vrf：最多密度材積 | C80: =C74 -> 0.053887 | D80: =D74 -> -1.18794 | E80: =E74 -> 7663.1 | F80: =F74 -> -3.20151 | G80: =G74 -> 12.74705882 | I80: =(C80*G80^D80+E80*G80^F80/I81)^-1 -> 332.9830921
B81: Nrf:最多密度本数 | C81: 5.992602 | D81: -2.017716 | G81: =G74 -> 12.74705882 | I81: =10^(C81+D81*LOG(G81)) -> 5783.604364
A82: 11 | B82: V:ha材積 | C82: 0.04933263 | D82: -1.206227 | E82: 8676.3 | F82: -3.26218 | G82: 10.9 | H82: 733.3333333 | I82: =(C82*G82^D82+E82*G82^F82/H82)^-1 -> 130.731508 | J82: 17.88636364 | K82: =I82*(J82/I86)^2 -> 104.4476437
B83: HF:林分形状高 | C83: 0.406256 | D83: 0.424739 | E83: 0.157447 | G83: =G82 -> 10.9 | H83: =H82 -> 733.3333333 | I83: =C83+D83*G83+E83*SQRT(H83)*G83/100 -> 5.500652756
B84: G:ha当たり断面積 | I84: =I82/I83 -> 23.76654442
B85: dg^：断面積平均直径 | H85: =H82 -> 733.3333333 | I85: =200*SQRT(I84/(PI()*H85)) -> 20.31362201
B86: d^：平均胸高直径 | C86: -0.046068 | D86: 0.991597 | E86: -0.02918 | G86: =G82 -> 10.9 | H86: =H82 -> 733.3333333 | I86: =C86+D86*I85+E86*SQRT(H86)*G86/100 -> 20.01072704
B87: Rｙ：収量比数 | G87: =G82 -> 10.9 | H87: =H82 -> 733.3333333 | I87: =I82/I88 -> 0.4315358672 | K87: =K82/I88 -> 0.3447746083
B88: Vrf：最多密度材積 | C88: =C82 -> 0.04933263 | D88: =D82 -> -1.206227 | E88: =E82 -> 8676.3 | F88: =F82 -> -3.26218 | G88: =G82 -> 10.9 | I88: =(C88*G88^D88+E88*G88^F88/I89)^-1 -> 302.9447098
B89: Nrf:最多密度本数 | C89: 5.9582 | D89: -2.055953 | G89: =G82 -> 10.9 | I89: =10^(C89+D89*LOG(G89)) -> 6688.055668
A90: 12 | B90: V:ha材積 | C90: 0.0651368 | D90: -1.230184 | E90: 9492.9 | F90: -2.948559 | G90: 18.94285714 | H90: 566.6666667 | I90: =(C90*G90^D90+E90*G90^F90/H90)^-1 -> 216.7177768 | J90: 25.18823529 | K90: =I90*(J90/I94)^2 -> 265.6163499
B91: HF:林分形状高 | C91: 0.954862 | D91: 0.42397 | E91: 0.025833 | G91: =G90 -> 18.94285714 | H91: =H90 -> 566.6666667 | I91: =C91+D91*G91+E91*SQRT(H91)*G91/100 -> 9.10255394
B92: G:ha当たり断面積 | I92: =I90/I91 -> 23.80845839
B93: dg^：断面積平均直径 | H93: =H90 -> 566.6666667 | I93: =200*SQRT(I92/(PI()*H93)) -> 23.12900041
B94: d^：平均胸高直径 | C94: -0.176987 | D94: 0.99847 | E94: -0.036531 | G94: =G90 -> 18.94285714 | H94: =H90 -> 566.6666667 | I94: =C94+D94*I93+E94*SQRT(H94)*G94/100 -> 22.75189673
B95: Rｙ：収量比数 | G95: =G90 -> 18.94285714 | H95: =H90 -> 566.6666667 | I95: =I90/I96 -> 0.5807059793 | K95: =K90/I96 -> 0.7117321196
B96: Vrf：最多密度材積 | C96: =C90 -> 0.0651368 | D96: =D90 -> -1.230184 | E96: =E90 -> 9492.9 | F96: =F90 -> -2.948559 | G96: =G90 -> 18.94285714 | I96: =(C96*G96^D96+E96*G96^F96/I97)^-1 -> 373.1970816
B97: Nrf:最多密度本数 | C97: 5.43631 | D97: -1.718375 | G97: =G90 -> 18.94285714 | I97: =10^(C97+D97*LOG(G97)) -> 1742.527402
A98: 13 | B98: V:ha材積 | C98: 0.095669 | D98: -1.274434 | E98: 8833.4 | F98: -3.054618 | G98: 0.6 | H98: 2900 | I98: =(C98*G98^D98+E98*G98^F98/H98)^-1 -> 0.06810003107 | J98: 0 | K98: =I98*(J98/I102)^2 -> 0
B99: HF:林分形状高 | C99: 0.578096 | D99: 0.460651 | E99: 0.042259 | G99: =G98 -> 0.6 | H99: =H98 -> 2900 | I99: =C99+D99*G99+E99*SQRT(H99)*G99/100 -> 0.8681409008
B100: G:ha当たり断面積 | I100: =I98/I99 -> 0.07844352341
B101: dg^：断面積平均直径 | H101: =H98 -> 2900 | I101: =200*SQRT(I100/(PI()*H101)) -> 0.5868601315
B102: d^：平均胸高直径 | C102: -0.155598 | D102: 0.982606 | G102: =G98 -> 0.6 | H102: =H98 -> 2900 | I102: =C102+D102*I101+E102*SQRT(H102)*G102/100 -> 0.4210542863
B103: Rｙ：収量比数 | G103: =G98 -> 0.6 | H103: =H98 -> 2900 | I103: =I98/I104 -> 0.01589862547 | K103: =K98/I104 -> 0
B104: Vrf：最多密度材積 | C104: =C98 -> 0.095669 | D104: =D98 -> -1.274434 | E104: =E98 -> 8833.4 | F104: =F98 -> -3.054618 | G104: =G98 -> 0.6 | I104: =(C104*G104^D104+E104*G104^F104/I105)^-1 -> 4.283391115
B105: Nrf:最多密度本数 | C105: 5.529749 | D105: -1.780184 | G105: =G98 -> 0.6 | I105: =10^(C105+D105*LOG(G105)) -> 840776.558
A106: 14 | B106: V:ha材積 | C106: 0.0719621 | D106: -1.228582 | E106: 14292.3 | F106: -3.415059 | G106: 20 | H106: 1000 | I106: =(C106*G106^D106+E106*G106^F106/H106)^-1 -> 429.2906783 | J106: 24 | K106: =I106*(J106/I110)^2 -> 464.6270672
B107: HF:林分形状高 | C107: 1.047526 | D107: 0.406406 | E107: 0.092623 | G107: =G106 -> 20 | H107: =H106 -> 1000 | I107: =C107+D107*G107+E107*SQRT(H107)*G107/100 -> 9.761445287
B108: G:ha当たり断面積 | I108: =I106/I107 -> 43.97818823
B109: dg^：断面積平均直径 | H109: =H106 -> 1000 | I109: =200*SQRT(I108/(PI()*H109)) -> 23.66321372
B110: d^：平均胸高直径 | C110: -0.288013 | D110: 0.995964 | E110: -0.033264 | G110: =G106 -> 20 | H110: =H106 -> 1000 | I110: =C110+D110*I109+E110*SQRT(H110)*G110/100 -> 23.06931598
B111: Rｙ：収量比数 | G111: =G106 -> 20 | H111: =H106 -> 1000 | I111: =I106/I112 -> 0.8907114234 | K111: =K106/I112 -> 0.9640289372
B112: Vrf：最多密度材積 | C112: =C106 -> 0.0719621 | D112: =D106 -> -1.228582 | E112: =E106 -> 14292.3 | F112: =F106 -> -3.415059 | G112: =G106 -> 20 | I112: =(C112*G112^D112+E112*G112^F112/I113)^-1 -> 481.9638179
B113: Nrf:最多密度本数 | C113: 6.140608 | D113: -2.186477 | G113: =G106 -> 20 | I113: =10^(C113+D113*LOG(G113)) -> 1976.677588
A114: 15 | B114: V:ha材積 | C114: 0.0779762 | D114: -1.201192 | E114: 9775.3 | F114: -3.338925 | G114: 20 | H114: 1000 | I114: =(C114*G114^D114+E114*G114^F114/H114)^-1 -> 388.110711 | J114: 24 | K114: =I114*(J114/I118)^2 -> 449.9267929
B115: HF:林分形状高 | C115: 0.886868 | D115: 0.378014 | E115: 0.15512 | G115: =G114 -> 20 | H115: =H114 -> 1000 | I115: =C115+D115*G115+E115*SQRT(H115)*G115/100 -> 9.428213021
B116: G:ha当たり断面積 | I116: =I114/I115 -> 41.16482202
B117: dg^：断面積平均直径 | H117: =H114 -> 1000 | I117: =200*SQRT(I116/(PI()*H117)) -> 22.89381559
B118: d^：平均胸高直径 | C118: -0.342939 | D118: 0.988623 | G118: =G114 -> 20 | H118: =H114 -> 1000 | I118: =C118+D118*I117+E118*SQRT(H118)*G118/100 -> 22.29041365
B119: Rｙ：収量比数 | G119: =G114 -> 20 | H119: =H114 -> 1000 | I119: =I114/I120 -> 0.8995630465
B120: Vrf：最多密度材積 | C120: =C114 -> 0.0779762 | D120: =D114 -> -1.201192 | E120: =E114 -> 9775.3 | F120: =F114 -> -3.338925 | G120: =G114 -> 20 | I120: =(C120*G120^D120+E120*G120^F120/I121)^-1 -> 431.4435909
B121: Nrf:最多密度本数 | C121: 6.162775 | D121: -2.137733 | G121: =G114 -> 20 | I121: =10^(C121+D121*LOG(G121)) -> 2407.244728
A122: 16 | B122: V:ha材積 | C122: 0.0875812 | D122: -1.297241 | E122: 13053 | F122: -3.605911 | G122: 20 | H122: 1000 | I122: =(C122*G122^D122+E122*G122^F122/H122)^-1 -> 484.702678 | J122: 24 | K122: =I122*(J122/I126)^2 -> 477.9663194
B123: HF:林分形状高 | C123: 1.169226 | D123: 0.421353 | E123: 0.050591 | G123: =G122 -> 20 | H123: =H122 -> 1000 | I123: =C123+D123*G123+E123*SQRT(H123)*G123/100 -> 9.916251578
B124: G:ha当たり断面積 | I124: =I122/I123 -> 48.87962696
B125: dg^：断面積平均直径 | H125: =H122 -> 1000 | I125: =200*SQRT(I124/(PI()*H125)) -> 24.9470387
B126: d^：平均胸高直径 | C126: -0.394096 | D126: 0.984591 | G126: =G122 -> 20 | H126: =H122 -> 1000 | I126: =C126+D126*I125+E126*SQRT(H126)*G126/100 -> 24.16853378
B127: Rｙ：収量比数 | G127: =G122 -> 20 | H127: =H122 -> 1000 | I127: =I122/I128 -> 0.9441286606 | K127: =K122/I128 -> 0.9310072369
B128: Vrf：最多密度材積 | C128: =C122 -> 0.0875812 | D128: =D122 -> -1.297241 | E128: =E122 -> 13053 | F128: =F122 -> -3.605911 | G128: =G122 -> 20 | I128: =(C128*G128^D128+E128*G128^F128/I129)^-1 -> 513.3862558
B129: Nrf:最多密度本数 | C129: 6.250765 | D129: -2.30867 | G129: =G122 -> 20 | I129: =10^(C129+D129*LOG(G129)) -> 1766.509917
A130: 17 | B130: V:ha材積 | C130: 0.0972414 | D130: -1.303824 | E130: 17965.6 | F130: -3.624208 | G130: 20 | H130: 1000 | I130: =(C130*G130^D130+E130*G130^F130/H130)^-1 -> 434.2375241 | J130: 24 | K130: =I130*(J130/I134)^2 -> 459.7395958
B131: HF:林分形状高 | C131: 1.347274 | D131: 0.346841 | E131: 0.165699 | G131: =G130 -> 20 | H131: =H130 -> 1000 | I131: =C131+D131*G131+E131*SQRT(H131)*G131/100 -> 9.332066492
B132: G:ha当たり断面積 | I132: =I130/I131 -> 46.53176491
B133: dg^：断面積平均直径 | H133: =H130 -> 1000 | I133: =200*SQRT(I132/(PI()*H133)) -> 24.34051831
B134: d^：平均胸高直径 | C134: -0.286786 | D134: 0.970055 | G134: =G130 -> 20 | H134: =H130 -> 1000 | I134: =C134+D134*I133+E134*SQRT(H134)*G134/100 -> 23.32485549
B135: Rｙ：収量比数 | G135: =G130 -> 20 | H135: =H130 -> 1000 | I135: =I130/I136 -> 0.9228696576 | K135: =K130/I136 -> 0.977068309
B136: Vrf：最多密度材積 | C136: =C130 -> 0.0972414 | D136: =D130 -> -1.303824 | E136: =E130 -> 17965.6 | F136: =F130 -> -3.624208 | G136: =G130 -> 20 | I136: =(C136*G136^D136+E136*G136^F136/I137)^-1 -> 470.5296361
B137: Nrf:最多密度本数 | C137: 6.33151 | D137: -2.320384 | G137: =G130 -> 20 | I137: =10^(C137+D137*LOG(G137)) -> 2054.096367
A138: 18 | B138: V:ha材積 | C138: 0.0723021 | D138: -1.090327 | E138: 18255.4 | F138: -3.270981 | G138: 20 | H138: 1000 | I138: =(C138*G138^D138+E138*G138^F138/H138)^-1 -> 265.1552892 | J138: 24 | K138: =I138*(J138/I142)^2 -> 467.8578038
B139: HF:林分形状高 | C139: 0.596469 | D139: 0.367905 | E139: 0.097194 | G139: =G138 -> 20 | H139: =H138 -> 1000 | I139: =C139+D139*G139+E139*SQRT(H139)*G139/100 -> 8.56927783
B140: G:ha当たり断面積 | I140: =I138/I139 -> 30.94254784
B141: dg^：断面積平均直径 | H141: =H138 -> 1000 | I141: =200*SQRT(I140/(PI()*H141)) -> 19.84874694
B142: d^：平均胸高直径 | C142: 0.478488 | D142: 0.911902 | E142: -0.08077 | G142: =G138 -> 20 | H142: =H138 -> 1000 | I142: =C142+D142*I141+E142*SQRT(H142)*G142/100 -> 18.0677657
B143: Rｙ：収量比数 | G143: =G138 -> 20 | H143: =H138 -> 1000 | I143: =I138/I144 -> 0.8006391688 | K143: =K138/I144 -> 1.412701531
B144: Vrf：最多密度材積 | C144: =C138 -> 0.0723021 | D144: =D138 -> -1.090327 | E144: =E138 -> 18255.4 | F144: =F138 -> -3.270981 | G144: =G138 -> 20 | I144: =(C144*G144^D144+E144*G144^F144/I145)^-1 -> 331.179512
B145: Nrf:最多密度本数 | C145: 6.425444 | D145: -2.180654 | G145: =G138 -> 20 | I145: =10^(C145+D145*LOG(G145)) -> 3875.678429
A146: 19 | B146: V:ha材積 | C146: 0.0700416 | D146: -1.071349 | E146: 20847.2 | F146: -3.214048 | G146: 20 | H146: 1000 | I146: =(C146*G146^D146+E146*G146^F146/H146)^-1 -> 238.0664238 | J146: 24 | K146: =I146*(J146/I150)^2 -> 462.9702764
B147: HF:林分形状高 | C147: 0.432383 | D147: 0.37653 | E147: 0.103221 | G147: =G146 -> 20 | H147: =H146 -> 1000 | I147: =C147+D147*G147+E147*SQRT(H147)*G147/100 -> 8.615809925
B148: G:ha当たり断面積 | I148: =I146/I147 -> 27.63134585
B149: dg^：断面積平均直径 | H149: =H146 -> 1000 | I149: =200*SQRT(I148/(PI()*H149)) -> 18.75668473
B150: d^：平均胸高直径 | C150: 0.435661 | D150: 0.919064 | E150: -0.073387 | G150: =G146 -> 20 | H150: =H146 -> 1000 | I150: =C150+D150*I149+E150*SQRT(H150)*G150/100 -> 17.21011455
B151: Rｙ：収量比数 | G151: =G146 -> 20 | H151: =H146 -> 1000 | I151: =I146/I152 -> 0.7958727758 | K151: =K146/I152 -> 1.547742152
B152: Vrf：最多密度材積 | C152: =C146 -> 0.0700416 | D152: =D146 -> -1.071349 | E152: =E146 -> 20847.2 | F152: =F146 -> -3.214048 | G152: =G146 -> 20 | I152: =(C152*G152^D152+E152*G152^F152/I153)^-1 -> 299.126231
B153: Nrf:最多密度本数 | C153: 6.213431 | D153: -2.142699 | G153: =G146 -> 20 | I153: =10^(C153+D153*LOG(G153)) -> 2665.111169
A154: 20 | B154: V:ha材積 | C154: 0.0641079 | D154: -1.081238 | E154: 18249.9 | F154: -3.243714 | G154: 20 | H154: 1000 | I154: =(C154*G154^D154+E154*G154^F154/H154)^-1 -> 276.8385527 | J154: 24 | K154: =I154*(J154/I158)^2 -> 482.9066601
B155: HF:林分形状高 | C155: 0.284158 | D155: 0.369231 | E155: 0.159348 | G155: =G154 -> 20 | H155: =H154 -> 1000 | I155: =C155+D155*G155+E155*SQRT(H155)*G155/100 -> 8.676583241
B156: G:ha当たり断面積 | I156: =I154/I155 -> 31.90640198
B157: dg^：断面積平均直径 | H157: =H154 -> 1000 | I157: =200*SQRT(I156/(PI()*H157)) -> 20.15551853
B158: d^：平均胸高直径 | C158: 0.504698 | D158: 0.910057 | E158: -0.10685 | G158: =G154 -> 20 | H158: =H154 -> 1000 | I158: =C158+D158*I157+E158*SQRT(H158)*G158/100 -> 18.17158999
B159: Rｙ：収量比数 | G159: =G154 -> 20 | H159: =H154 -> 1000 | I159: =I154/I160 -> 0.7847741503 | K159: =K154/I160 -> 1.368930231
B160: Vrf：最多密度材積 | C160: =C154 -> 0.0641079 | D160: =D154 -> -1.081238 | E160: =E154 -> 18249.9 | F160: =F154 -> -3.243714 | G160: =G154 -> 20 | I160: =(C160*G160^D160+E160*G160^F160/I161)^-1 -> 352.7620687
B161: Nrf:最多密度本数 | C161: 6.346958 | D161: -2.162476 | G161: =G154 -> 20 | I161: =10^(C161+D161*LOG(G161)) -> 3415.952784
A162: 21 | B162: V:ha材積 | C162: 0.0334495 | D162: -0.982417 | E162: 15954.1 | F162: -2.947251 | G162: 20 | H162: 1000 | I162: =(C162*G162^D162+E162*G162^F162/H162)^-1 -> 243.9859731 | J162: 24 | K162: =I162*(J162/I166)^2 -> 450.0612425
B163: HF:林分形状高 | C163: 0.941865 | D163: 0.349206 | E163: 0.095344 | G163: =G162 -> 20 | H163: =H162 -> 1000 | I163: =C163+D163*G163+E163*SQRT(H163)*G163/100 -> 8.528993402
B164: G:ha当たり断面積 | I164: =I162/I163 -> 28.60665516
B165: dg^：断面積平均直径 | H165: =H162 -> 1000 | I165: =200*SQRT(I164/(PI()*H165)) -> 19.08484336
B166: d^：平均胸高直径 | C166: 0.0532 | D166: 0.945564 | E166: -0.067716 | G166: =G162 -> 20 | H166: =H162 -> 1000 | I166: =C166+D166*I165+E166*SQRT(H166)*G166/100 -> 17.67086723
B167: Rｙ：収量比数 | G167: =G162 -> 20 | H167: =H162 -> 1000 | I167: =I162/I168 -> 0.7645407075 | K167: =K162/I168 -> 1.410286568
B168: Vrf：最多密度材積 | C168: =C162 -> 0.0334495 | D168: =D162 -> -0.982417 | E168: =E162 -> 15954.1 | F168: =F162 -> -2.947251 | G168: =G162 -> 20 | I168: =(C168*G168^D168+E168*G168^F168/I169)^-1 -> 319.1275111
B169: Nrf:最多密度本数 | C169: 5.787804 | D169: -1.964834 | G169: =G162 -> 20 | I169: =10^(C169+D169*LOG(G169)) -> 1704.10374
A170: 22 | B170: V:ha材積 | C170: 0.0572424 | D170: -1.005549 | E170: 13421.6 | F170: -3.016648 | G170: 20 | H170: 1000 | I170: =(C170*G170^D170+E170*G170^F170/H170)^-1 -> 226.7051549 | J170: 24 | K170: =I170*(J170/I174)^2 -> 477.4081247
B171: HF:林分形状高 | C171: 0.969206 | D171: 0.413453 | G171: =G170 -> 20 | H171: =H170 -> 1000 | I171: =C171+D171*G171+E171*SQRT(H171)*G171/100 -> 9.238266
B172: G:ha当たり断面積 | I172: =I170/I171 -> 24.53979512
B173: dg^：断面積平均直径 | H173: =H170 -> 1000 | I173: =200*SQRT(I172/(PI()*H173)) -> 17.67626589
B174: d^：平均胸高直径 | C174: 0.301148 | D174: 0.942676 | E174: -0.067294 | G174: =G170 -> 20 | H174: =H170 -> 1000 | I174: =C174+D174*I173+E174*SQRT(H174)*G174/100 -> 16.53853499
B175: Rｙ：収量比数 | G175: =G170 -> 20 | H175: =H170 -> 1000 | I175: =I170/I176 -> 0.8847366201 | K175: =K170/I176 -> 1.863126804
B176: Vrf：最多密度材積 | C176: =C170 -> 0.0572424 | D176: =D170 -> -1.005549 | E176: =E170 -> 13421.6 | F176: =F170 -> -3.016648 | G176: =G170 -> 20 | I176: =(C176*G176^D176+E176*G176^F176/I177)^-1 -> 256.2402751
B177: Nrf:最多密度本数 | C177: 5.783065 | D177: -2.011099 | G177: =G170 -> 20 | I177: =10^(C177+D177*LOG(G177)) -> 1467.455285

Sheet 都道府県 (hidden)
A1: 1 | B1: 北海道 | C1: 2 | E1: 12
A2: 2 | B2: 青森県 | C2: 2 | E2: 13 | F2: 14 | G2: 18
A3: 3 | B3: 岩手県 | C3: 1 | E3: 13 | F3: 14 | G3: 18
A4: 4 | B4: 宮城県 | C4: 1 | D4: 8 | E4: 13 | F4: 14 | G4: 18
A5: 5 | B5: 秋田県 | C5: 2 | E5: 13 | F5: 16 | G5: 18
A6: 6 | B6: 山形県 | C6: 2 | E6: 13 | F6: 16 | G6: 18
A7: 7 | B7: 福島県 | C7: 1 | D7: 8 | E7: 13 | F7: 14 | G7: 18
A8: 8 | B8: 茨城県 | C8: 4 | D8: 8 | F8: 15 | G8: 19
A9: 9 | B9: 栃木県 | C9: 3 | D9: 8 | E9: 13 | F9: 15 | G9: 19
A10: 10 | B10: 群馬県 | C10: 3 | D10: 8 | E10: 13 | F10: 15 | G10: 19
A11: 11 | B11: 埼玉県 | C11: 3 | D11: 8 | E11: 13 | F11: 15 | G11: 19
A12: 12 | B12: 千葉県 | C12: 4 | D12: 8 | F12: 15 | G12: 19
A13: 13 | B13: 東京都 | C13: 4 | D13: 8 | F13: 15 | G13: 19
A14: 14 | B14: 神奈川県 | C14: 4 | D14: 8 | F14: 15 | G14: 19
A15: 15 | B15: 新潟県 | C15: 2 | D15: 8 | E15: 13 | F15: 16 | G15: 18
A16: 16 | B16: 富山県 | C16: 2 | D16: 8 | E16: 13 | F16: 16 | G16: 20
A17: 17 | B17: 石川県 | C17: 2 | D17: 8 | F17: 16 | G17: 20
A18: 18 | B18: 福井県 | C18: 2 | D18: 8 | F18: 16 | G18: 20
A19: 19 | B19: 山梨県 | C19: 3 | D19: 8 | E19: 13 | F19: 15 | G19: 19
A20: 20 | B20: 長野県 | C20: 3 | D20: 8 | E20: 13 | F20: 15 | G20: 19
A21: 21 | B21: 岐阜県 | C21: 3 | D21: 8 | E21: 13 | F21: 15 | G21: 19
A22: 22 | B22: 静岡県 | C22: 4 | D22: 8 | E22: 13 | F22: 15 | G22: 19
A23: 23 | B23: 愛知県 | C23: 4 | D23: 8 | F23: 15 | G23: 19
A24: 24 | B24: 三重県 | C24: 4 | D24: 10 | F24: 17 | G24: 21
A25: 25 | B25: 滋賀県 | C25: 5 | D25: 9 | F25: 17 | G25: 21
A26: 26 | B26: 京都府 | C26: 5 | D26: 9 | F26: 17 | G26: 21
A27: 27 | B27: 大阪府 | C27: 5 | D27: 9 | F27: 17 | G27: 21
A28: 28 | B28: 兵庫県 | C28: 5 | D28: 9 | F28: 17 | G28: 21
A29: 29 | B29: 奈良県 | C29: 6 | D29: 10 | F29: 17 | G29: 21
A30: 30 | B30: 和歌山県 | C30: 6 | D30: 10 | F30: 17 | G30: 21
A31: 31 | B31: 鳥取県 | C31: 5 | D31: 9 | F31: 17 | G31: 20
A32: 32 | B32: 島根県 | C32: 5 | D32: 9 | F32: 17 | G32: 20
A33: 33 | B33: 岡山県 | C33: 5 | D33: 9 | F33: 17 | G33: 21
A34: 34 | B34: 広島県 | C34: 5 | D34: 9 | F34: 17 | G34: 21
A35: 35 | B35: 山口県 | C35: 5 | D35: 9 | F35: 17 | G35: 21
A36: 36 | B36: 徳島県 | C36: 6 | D36: 10 | F36: 17 | G36: 22
A37: 37 | B37: 香川県 | C37: 6 | D37: 10 | F37: 17 | G37: 22
A38: 38 | B38: 愛媛県 | C38: 6 | D38: 10 | F38: 17 | G38: 22
A39: 39 | B39: 高知県 | C39: 6 | D39: 10 | F39: 17 | G39: 22
A40: 40 | B40: 福岡県 | C40: 7 | D40: 11 | F40: 17 | G40: 22
A41: 41 | B41: 佐賀県 | C41: 7 | D41: 11 | F41: 17 | G41: 22
A42: 42 | B42: 長崎県 | C42: 7 | D42: 11 | F42: 17 | G42: 22
A43: 43 | B43: 熊本県 | C43: 7 | D43: 11 | F43: 17 | G43: 22
A44: 44 | B44: 大分県 | C44: 7 | D44: 11 | F44: 17 | G44: 22
A45: 45 | B45: 宮崎県 | C45: 7 | D45: 11 | F45: 17 | G45: 22
A46: 46 | B46: 鹿児島県 | C46: 7 | D46: 11 | F46: 17 | G46: 22
A47: 47 | B47: 沖縄県
C48: スギ | D48: ヒノキ | E48: カラマツ | F48: アカマツ | G48: 広葉樹

Sheet 成長量 (hidden)
A1: 詳細版 | C1: ２０年生以下 | D1: ２１年生以上 | G1: 詳細版近似式 | I1: ゴンペルツ | J1: y=Kb^a^x | L1: 森林資源現況調査平成２３年版による近似材積量近似式 | S1: 0 | T1: 1
B2: スギ | C2: 1.15234075 | D2: 0.90278925 | L2: x：齢級 | T2: 2
B3: ヒノキ | C3: 1.48640877 | D3: 1.189127016 | G3: スギ | H3: 1 | I3: K(指定) | J3: 600 | T3: 3
B4: カラマツ | C4: 1.4618538 | D4: 1.12075458 | I4: a | J4: 0.811886475 | T4: 4
B5: その他樹種 | C5: 1.550988008 | D5: 1.272230336 | I5: b | J5: 0.01544896187 | T5: 5
H6: 2 | I6: K(指定) | J6: 600 | T6: 6
I7: a | J7: 0.7922648575 | T7: 7
I8: b | J8: 0.005668413842 | T8: 8
H9: 3 | I9: K(指定) | J9: 600 | T9: 9
I10: a | J10: 0.8011452487 | T10: 10
I11: b | J11: 0.01204150956
H12: 4 | I12: K(指定) | J12: 500
I13: a | J13: 0.7787544295
I14: b | J14: 0.008339130408
H15: 5 | I15: K(指定) | J15: 600
I16: a | J16: 0.8163384122
I17: b | J17: 0.04756010024
H18: 6 | I18: K(指定) | J18: 700
I19: a | J19: 0.8098082188
I20: b | J20: 0.01927988403
H21: 7 | I21: K(指定) | J21: 700
I22: a | J22: 0.7787403113
I23: b | J23: 0.003531881461
G24: ヒノキ | H24: 8 | I24: K(指定) | J24: 400
I25: a | J25: 0.8169020062
I26: b | J26: 0.01875676767
H27: 9 | I27: K(指定) | J27: 400
I28: a | J28: 0.8103032195
I29: b | J29: 0.03372668053
H30: 10 | I30: K(指定) | J30: 400
I31: a | J31: 0.7674468806
I32: b | J32: 0.007955725525
H33: 11 | I33: K(指定) | J33: 500
I34: a | J34: 0.8124596868
I35: b | J35: 0.02603314093
G36: カラマツ | H36: 12 | I36: K(指定) | J36: 400
I37: a | J37: 0.8911799772
I38: b | J38: 0.1089875334
H39: 13 | I39: K(指定) | J39: 300
I40: a | J40: 0.8499850804
I41: b | J41: 0.1678565772
G42: その他 | H42: 14 | I42: K(指定) | J42: 200 | P42: =J42*J44^(J43^11) -> 125.9405646
I43: a | J43: 0.8574576914
I44: b | J44: 0.08121886119
